Cogmind - Beta 10.1 @@@ ROGUE MODE // 2021.06.09 @ 14:58:07 // Winter2019/RPGLIKE Player: Farfid Result: Escaped! Performance ------------- Evolutions (9) 4500 Regions Visited (34) 6800 Robots Destroyed (467) 2335 Value Destroyed (22141) 22141 Prototype IDs (81) 1620 Alien Tech Used (4) 800 Bonus (22044) 22044 TOTAL SCORE: 60240 Bonus ------- Triggered High Security 500 High Alert Combat Kills 6282 Follower Combat Kills 643 Met Data Miner 300 Met Imprinter 300 Met Zhirov 300 Met Warlord at Base 500 MAIN.C Attacked Warlord 500 Warlord Defense Kill 2792 Met Warlord at Research 2000 Invited to Help at Command 2000 Met Sigix 2000 Met Warlord at Command 2000 Win 3000 Friendly Fire -1073 Cogmind --------- Core Integrity 956/2200 Matter 196/350 Energy 108/700 System Corruption 4% Temperature Cool (6) Movement Flying (34) Location To Epsilon Eridani Parts ------- > --- POWER (2) -------- Vortex Chain Reactor > --- PROPULSION (6) --- Impulse Thruster Array Impulse Thruster Array Impulse Thruster Array > --- UTILITY (11) ----- Experimental Signal Interpreter Makeshift Terrain Scanner Experimental Core Analyzer Advanced Armor Integrity Analyzer Advanced Kinecellerator Advanced Weapon Cycler Improved Stasis Canceller Centrium Light Armor Plating Advanced Shield Generator Corruption Screen Long-range Tractor Beam > --- WEAPON (6) ------- Helical Railgun Helical Railgun Compact Linear Accelerator Heavy Shock Bomb Launcher > --- INVENTORY (4) ---- Energy Filter Improved System Restoration Module Peak State ------------ > --- POWER ------------ Vortex Chain Reactor > --- PROPULSION ------- Impulse Thruster Array Impulse Thruster Array Impulse Thruster Array > --- UTILITY ---------- Experimental Signal Interpreter Makeshift Terrain Scanner Advanced Launcher Guidance Computer Experimental Core Analyzer Advanced Armor Integrity Analyzer Energy Filter Advanced Kinecellerator Advanced Shield Generator System Mapper Advanced Dynamic Insulation System Long-range Tractor Beam > --- WEAPON ----------- Gamma Rifle Improved Matter Neutralizer Helical Railgun Helical Railgun Compact Linear Accelerator Heavy Shock Bomb Launcher > --- INVENTORY -------- Protomatter Improved Stasis Canceller Corruption Screen Terrabomb [Rating: 197] Favorites ----------- Power F-cell Engine Engine F-cell Engine Power Core Light Nuclear Core Reactor Vortex Chain Reactor Propulsion Improved Antigrav System Wheel Wheel Hover Unit Improved Antigrav System Flight Unit Cooled Nuclear Pulse Thruster Utility Long-range Tractor Beam Device Long-range Tractor Beam Storage Experimental Energy Well Processor Experimental Signal Interpreter Hackware Advanced Hacking Suite Protection Improved Light Armor Plating Weapon Enhanced Gauss Cannon Energy Gun Plasma Storm Energy Cannon Enhanced Nova Cannon Ballistic Gun Gauss Rifle Ballistic Cannon Enhanced Gauss Cannon Launcher Heavy Shock Bomb Launcher Special Weapon Remote Datajack Slashing Weapon Phasing Sabre Piercing Weapon Plasma Lance Special Melee Weapon Advanced Datajack Build | -11 -10 -10 -10 -9 -8 -7 -7 -7 -7 -6 -6 -6 -6 -6 -6 -6 -5 -5 -5 -5 -5 -4 -4 -4 -4 -4 -4 -4 -3 -3 -3 -2 -1 -1 ------- Run | Scr Mat Min Exi Min Mat Fac Low Low Zio Pro Fac Was Fac Low Low Dat Pro Fac Upp Upp Zhi Pro Fac Was Fac Upp Upp War Pro Res Qua Res Acc Com Slots Evolved 20 | 3 . . 1 . 2 2 . 1 1 . . . . . . . 2 3 . . . . 1 . . . . 1 . 1 . 2 . . Power 1 | . . . . . . . . . . . . . . . . . . 1 . . . . . . . . . . . . . . . . Propulsion 5 | 1 . . . . 1 1 . . . . . . . . . . 1 1 . . . . . . . . . . . . . . . . Utility 10 | 1 . . 1 . 1 . . 1 1 . . . . . . . 1 1 . . . . 1 . . . . . . . . 2 . . Weapon 4 | 1 . . . . . 1 . . . . . . . . . . . . . . . . . . . . . 1 . 1 . . . . Parts Attached 253 | 5 2 . . 5 7 24 . 4 9 1 10 3 12 2 1 . 4 25 1 14 5 . 13 1 17 1 2 15 6 9 2 45 . 8 Power 19 | 1 . . . . . 5 . . . . . 1 1 . . . . 5 . 2 1 . . . . . . 1 . . . 2 . . Engine 8 | 1 . . . . . 3 . . . . . . 1 . . . . 2 . 1 . . . . . . . . . . . . . . Core 6 | . . . . . . 2 . . . . . . . . . . . 3 . 1 . . . . . . . . . . . . . . Reactor 5 | . . . . . . . . . . . . 1 . . . . . . . . 1 . . . . . . 1 . . . 2 . . Propulsion 44 | 2 . . . 1 1 6 . . . . 3 . 2 . . . 1 7 . . . . . . 8 . . 2 . . . 9 . 2 Treads . | . . . . . . . . . . . . . . . . . . . . . . . . . . . . . . . . . . . Leg . | . . . . . . . . . . . . . . . . . . . . . . . . . . . . . . . . . . . Wheel 3 | 2 . . . 1 . . . . . . . . . . . . . . . . . . . . . . . . . . . . . . Hover 25 | . . . . . 1 6 . . . . 3 . 2 . . . 1 . . . . . . . 5 . . 2 . . . 5 . . Flight 16 | . . . . . . . . . . . . . . . . . . 7 . . . . . . 3 . . . . . . 4 . 2 Utility 112 | . 1 . . 3 3 7 . 4 5 . 1 2 5 2 1 . 1 9 1 2 4 . 6 1 8 1 . 7 4 7 1 20 . 6 Device 83 | . 1 . . 1 1 2 . 3 2 . 1 2 5 2 1 . 1 8 1 2 2 . 6 1 8 1 . 6 3 4 1 13 . 5 Storage 3 | . . . . . . . . . . . . . . . . . . . . . 1 . . . . . . . . 2 . . . . Processor 11 | . . . . . . 2 . 1 3 . . . . . . . . . . . . . . . . . . . . 1 . 4 . . Hackware 4 | . . . . . . 1 . . . . . . . . . . . 1 . . . . . . . . . 1 . . . 1 . . Protection 11 | . . . . 2 2 2 . . . . . . . . . . . . . . 1 . . . . . . . 1 . . 2 . 1 Artifact . | . . . . . . . . . . . . . . . . . . . . . . . . . . . . . . . . . . . Weapon 78 | 2 1 . . 1 3 6 . . 4 1 6 . 4 . . . 2 4 . 10 . . 7 . 1 . 2 5 2 2 1 14 . . Energy Gun 10 | . . . . . . . . . 1 . . . 2 . . . . . . . . . . . . . . 2 1 1 . 3 . . Energy Cannon 5 | . . . . . . . . . . . . . . . . . 1 1 . . . . . . . . . . . . 1 2 . . Ballistic Gun 16 | 2 . . . . 2 1 . . 2 1 . . . . . . . 1 . 4 . . . . . . 1 . . . . 2 . . Ballistic Cannon 25 | . 1 . . 1 1 3 . . 1 . 4 . 1 . . . 1 1 . 3 . . 3 . . . . 2 . 1 . 2 . . Launcher 16 | . . . . . . 2 . . . . . . 1 . . . . . . 3 . . 3 . 1 . 1 1 1 . . 3 . . Special Weapon 2 | . . . . . . . . . . . 1 . . . . . . 1 . . . . . . . . . . . . . . . . Impact Weapon . | . . . . . . . . . . . . . . . . . . . . . . . . . . . . . . . . . . . Slashing Weapon 1 | . . . . . . . . . . . . . . . . . . . . . . . . . . . . . . . . 1 . . Piercing Weapon 2 | . . . . . . . . . . . 1 . . . . . . . . . . . . . . . . . . . . 1 . . Special Melee Weapon 1 | . . . . . . . . . . . . . . . . . . . . . . . 1 . . . . . . . . . . . Unidentified Prototypes 51 | . . . . . . 2 . 1 4 . 1 . 6 . . . . 2 1 . 3 . 2 . 1 . . 6 . 4 . 16 . 2 Parts Lost 1 | . . . . . . . . . . . . . . . . . . 1 . . . . . . . . . . . . . . . . Power . | . . . . . . . . . . . . . . . . . . . . . . . . . . . . . . . . . . . Propulsion . | . . . . . . . . . . . . . . . . . . . . . . . . . . . . . . . . . . . Utility 1 | . . . . . . . . . . . . . . . . . . 1 . . . . . . . . . . . . . . . . Weapon . | . . . . . . . . . . . . . . . . . . . . . . . . . . . . . . . . . . . Highest Loss Streak 1 | . . . . . . . . . . . . . . . . . . 1 . . . . . . . . . . . . . . . . Average Slot Usage (%) 88 | . 81 85 83 92 90 93 100 99 92 93 93 93 87 86 86 86 86 90 90 89 89 90 88 90 97 99 100 84 77 77 78 84 80 76 Engine 4 | . 14 14 13 12 10 8 8 7 6 6 6 . 2 6 6 6 5 7 10 9 7 5 4 4 4 4 4 1 . . . . . . Reactor 2 | . . . . . . . . . . . . 5 3 . . . . . . . 3 5 4 4 4 4 4 4 4 4 4 4 4 4 Wheel 2 | . 28 28 27 25 20 2 . . . . . . . . . . . . . . . . . . . . . . . . . . . . Hover 16 | . . . . . 6 24 33 31 26 26 25 26 21 20 20 20 19 . . . . . . . 16 23 23 25 27 26 26 20 . . Flight 6 | . . . . . . . . . . . . . . . . . . 24 25 25 25 25 23 23 9 4 4 1 . . . 2 12 12 Device 23 | . 10 14 13 19 23 22 16 18 20 20 20 20 20 20 20 20 20 24 25 24 24 25 26 28 27 27 28 27 27 26 26 24 28 30 Processor 8 | . . . . . . 3 8 7 11 13 13 13 13 13 13 13 12 10 10 10 10 10 9 9 9 9 9 9 9 7 4 10 12 12 Hackware 4 | . . . . . . 1 8 7 6 6 6 6 6 6 6 6 5 4 5 5 5 5 4 4 4 4 4 4 4 4 4 4 4 . Ballistic Gun 7 | . 17 14 13 12 10 12 16 15 12 13 6 6 6 6 6 6 5 5 5 5 5 5 4 4 4 4 4 1 . . . 6 8 8 Ballistic Cannon 7 | . 10 14 13 12 10 8 8 7 6 6 13 13 13 13 13 13 12 10 10 8 10 10 8 9 9 9 9 2 . . . 2 4 4 Launcher 1 | . . . . . . . . . . . . . . . . . . . . 1 . . . . 3 4 3 1 . . . 3 4 4 Naked Turns . | . . . . . . . . . . . . . . . . . . . . . . . . . . . . . . . . . . . Heaviest Build 98 | 6 9 9 9 14 21 29 26 29 29 34 43 42 42 36 36 36 51 61 61 65 61 61 63 64 72 72 71 76 75 86 89 98 89 88 Greatest Support 118 | 26 26 26 31 31 31 49 49 49 49 49 51 51 60 60 60 60 62 62 61 61 61 61 66 66 95 95 95 118 118 118 118 118 91 91 Greatest Overweight (x) 2 | . . . . . . . . . . . . . . . . . . 1 . 1 . . 1 . 2 . . . . . . 1 . 1 Average Overweight (x) . | . . . . . . . . . . . . . . . . . . . . . . . . . . . . . . . . . . . Largest Inventory Capacity 4 | 1 1 1 1 2 2 2 2 2 2 2 2 2 2 2 2 2 2 3 3 3 3 3 3 3 4 4 4 4 4 4 4 4 4 4 Average Capacity 2 | 1 1 1 1 1 2 2 2 2 2 2 2 2 2 2 2 2 2 2 3 3 3 3 3 3 3 4 4 4 4 4 4 4 4 4 Most Carried 4 | . 1 1 . . 2 2 2 2 2 2 2 2 2 2 2 2 2 3 3 3 3 3 3 3 4 4 4 4 4 4 4 4 4 4 Average Carried 2 | . . . . . . 1 2 2 2 2 1 1 1 2 2 2 2 2 3 2 3 2 2 3 3 3 4 3 3 4 3 3 4 2 Final Capacity 4 | 1 1 1 1 2 2 2 2 2 2 2 2 2 2 2 2 2 2 3 3 3 3 3 3 3 4 4 4 4 4 4 4 4 4 4 Final Carried 4 | . 1 . . . 2 2 2 2 2 2 2 2 2 2 2 2 2 3 3 3 3 3 3 3 3 4 4 4 4 4 4 4 4 2 Class Distribution -------------------- 75% | Hacker-Scout 11% | Scavenger-Scout 11% | Mutant Dominant Class ---------------- Mutant | -10/Materials Mutant | -10/Mines Mutant | -10/Exiles Mutant | -9/Mines Mutant | -8/Materials Mutant | -7/Factory Hacker-Scout | -7/Lower Caves Hacker-Scout | -7/Lower Caves Hacker-Scout | -7/Zion Hacker-Scout | -6/Proximity Caves Hacker-Scout | -6/Factory Hacker-Scout | -6/Waste Hacker-Scout | -6/Factory Hacker-Scout | -6/Lower Caves Hacker-Scout | -6/Lower Caves Hacker-Scout | -6/Data Miner Hacker-Scout | -5/Proximity Caves Hacker-Scout | -5/Factory Hacker-Scout | -5/Upper Caves Hacker-Scout | -5/Upper Caves Hacker-Scout | -5/Zhirov Hacker-Scout | -4/Proximity Caves Hacker-Scout | -4/Factory Hacker-Scout | -4/Waste Hacker-Scout | -4/Factory Hacker-Scout | -4/Upper Caves Hacker-Scout | -4/Upper Caves Hacker-Scout | -4/Warlord Hacker-Scout | -3/Proximity Caves Hacker-Scout | -3/Research Hacker-Scout | -3/Quarantine Hacker-Scout | -2/Research Scavenger-Scout | -1/Access Scavenger-Scout | -1/Command Resources | -11 -10 -10 -10 -9 -8 -7 -7 -7 -7 -6 -6 -6 -6 -6 -6 -6 -5 -5 -5 -5 -5 -4 -4 -4 -4 -4 -4 -4 -3 -3 -3 -2 -1 -1 ----------- Run | Scr Mat Min Exi Min Mat Fac Low Low Zio Pro Fac Was Fac Low Low Dat Pro Fac Upp Upp Zhi Pro Fac Was Fac Upp Upp War Pro Res Qua Res Acc Com Matter Collected 10336 | 250 . 191 . 151 187 557 274 270 71 237 205 327 238 171 288 . 246 697 204 484 . 176 562 154 530 339 99 166 67 111 20 1212 94 1758 Remotely 9476 | . . 191 . 93 187 507 274 270 71 237 205 327 238 171 288 . 246 522 204 258 . 104 540 154 523 339 99 166 67 111 20 1212 94 1758 Salvage Created 23063 | . . 190 . 10 296 622 93 383 . 207 210 1804 252 93 377 . 402 513 384 1497 . 213 1194 536 1381 748 232 1434 971 1217 571 3798 161 3274 Parts 914 | . 2 16 . 7 17 39 6 8 . 8 19 9 18 6 16 . 24 32 11 44 . 15 61 16 58 45 14 50 22 33 32 154 3 129 Haulers Intercepted 23 | . . . . . . 2 . . . . 1 . 1 . . . . 3 . . . . 5 . 4 . . . 1 2 . 2 2 . Recyclers Shooed 7 | . . 2 . . 2 1 . . . . 1 . . . . . . . . . . . . . 1 . . . . . . . . . Parts Field Recycled . | . . . . . . . . . . . . . . . . . . . . . . . . . . . . . . . . . . . Retrieved Matter . | . . . . . . . . . . . . . . . . . . . . . . . . . . . . . . . . . . . Parts Self-Destructed 222 | . . . . . . . 10 16 . 15 . . . 7 16 . 25 . 11 15 . 15 . . . 18 3 59 12 . . . . . Prevented 64 | . . . . . . . . . . . . . . 2 . . . . . 27 . . . . . 22 11 . 2 . . . . . Kills | -11 -10 -10 -10 -9 -8 -7 -7 -7 -7 -6 -6 -6 -6 -6 -6 -6 -5 -5 -5 -5 -5 -4 -4 -4 -4 -4 -4 -4 -3 -3 -3 -2 -1 -1 ------- Run | Scr Mat Min Exi Min Mat Fac Low Low Zio Pro Fac Was Fac Low Low Dat Pro Fac Upp Upp Zhi Pro Fac Was Fac Upp Upp War Pro Res Qua Res Acc Com Combat Hostiles Destroyed 350 | . 2 7 . 7 4 11 3 6 . 4 3 6 4 4 12 . 10 7 8 31 . 9 18 6 13 25 7 20 11 8 8 51 . 45 Guns 75 | . . 4 . 4 2 2 2 4 . 2 1 3 . . 6 . 6 1 2 1 . 4 2 . 2 2 . . 1 . . 10 . 14 Cannons 100 | . 2 2 . 3 2 3 1 2 . 2 2 3 4 4 6 . 4 6 6 4 . 5 6 6 10 3 . . . . . 7 . 7 AOE 128 | . . 1 . . . 6 . . . . . . . . . . . . . 18 . . 9 . 1 19 5 15 8 7 6 18 . 15 Classes Destroyed 24 | . 1 3 . 1 2 3 1 1 . . . 1 . . . . . 1 . . . . . . . 1 . 3 1 . . 3 . 2 Worker 36 | . . . . 1 . 1 . . . . 2 . 1 . . . . 3 . . . . 7 . 8 . . . . 6 2 1 . 4 Builder 9 | . . . . . . . . . . . . . . . . . . 1 . . . . 3 . 2 . . . . . 2 1 . . Tunneler 3 | . . 1 . . . . . . . . . . 2 . . . . . . . . . . . . . . . . . . . . . Hauler 23 | . . . . . . 2 . . . . 1 . 1 . . . . 3 . . . . 5 . 4 . . . 1 2 . 2 2 . Recycler 14 | . . 1 . . 2 3 . . . . . . 1 . . . . . . . . . . . . . . . . 2 . . . 5 Watcher 28 | . . . . . . 1 . . . . 1 . 1 . . . . 4 . . . . 3 . 2 . . . . 3 2 4 . 7 Swarmer 111 | . . 3 . 7 1 7 . . . 1 . . . 3 4 . 8 . . 12 . 4 8 . . 19 5 . . 4 . 9 . 16 Saboteur 2 | . . . . . . . . . . . . . . . . . . . . . . . . . . . . . . . . . . 2 Grunt 102 | . 2 4 . . . . 2 5 . 2 1 . . . 7 . . 6 6 12 . 2 4 . 5 1 . 7 8 3 . 21 . 4 Brawler 9 | . . . . . . . . 1 . . . . . . . . . . . 2 . . 1 . . 1 . 3 . . . . . 1 Duelist 12 | . . . . . . . 1 . . . . . . . 1 . . . . 2 . 1 . . . 3 . 1 . . . 1 . 2 Protector 1 | . . . . . . . . . . . . . . . . . . . . . . . . . . . . 1 . . . . . . Sentry 25 | . . . . . 2 2 . . . . 1 . 3 . . . . 1 1 2 . . 2 . 4 1 . . . 1 . 3 . 2 Demolisher 4 | . . . . . . . . . . . . . . . . . . . . . . . . . . . . 2 . . . 2 . . Specialist 7 | . . . . . . . . . . . . . . . . . . . . . . . . . . . . 1 . . 6 . . . Hunter 19 | . . . . . 1 1 . . . . . . . . . . . . 1 1 . . . . . . 2 2 2 . . 4 . 5 Programmer 30 | . . . . . . 1 . . . 1 1 . 1 1 . . 2 . . . . 2 3 . 4 . . 3 . . 2 4 . 5 Behemoth 3 | . . . . . . . . . . . . . . . . . . . . . . . . . . . . . 1 . . . . 2 Compactor 12 | . . . . . . . . . . . . 6 . . . . . . . . . . . 6 . . . . . . . . . . M Guard 1 | . . . . . . . . . . . . . . . . . . . . . . . . . . . . . . . . . . 1 Combat Programmer 1 | . . . . . . . . . . . . . . . . . . . . . . . . . . . . . . . . . . 1 Striker 5 | . . . . . . . . . . . . . . . . . . . . . . . . . . . . . . . . 4 . 1 Executioner 5 | . . . . . . . . . . . . . . . . . . . . . . . . . . . . . . . . 3 . 2 Alpha 7 1 | . . . . . . . . . . . . . . . . . . . . . . . . . . . . . . . . . . 1 Samaritan 1 | . . . . . . . . . . . . . . . . . . . . . . . . . . . . . . . . 1 . . Wasp 1 | . . . . . . . . . . 1 . . . . . . . . . . . . . . . . . . . . . . . . Thug 1 | . . . . . . . . . . . . . . . . . . . . . . . . . . . . . . . . 1 . . Fireman 1 | . . . . . . . . . . . . . . . . . . . . . . . . . . 1 . . . . . . . . Best Kill Streak 12 | . 2 3 . 3 4 5 3 3 . 1 3 3 4 3 4 . 5 5 8 8 . 4 9 4 12 5 5 8 6 8 6 8 2 12 Combat Bots Only 9 | . 2 3 . 3 1 4 3 3 . 1 2 3 1 3 4 . 5 3 8 8 . 4 5 4 4 5 5 8 5 4 3 8 . 9 Max Kills in Single Turn 4 | . 1 3 . 1 1 3 2 2 . 1 2 1 2 1 2 . 1 2 3 3 . 2 3 2 3 3 2 3 3 4 3 4 1 3 Gunslinging . | . . . . . . . . . . . . . . . . . . . . . . . . . . . . . . . . . . . Exploded 4 | . . 1 . . . 3 . . . . . . . . . . . . . 3 . . 3 . 1 3 2 3 2 3 1 4 . 3 Melee . | . . . . . . . . . . . . . . . . . . . . . . . . . . . . . . . . . . . Uniques/NPCs Destroyed . | . . . . . . . . . . . . . . . . . . . . . . . . . . . . . . . . . . . Combat | -11 -10 -10 -10 -9 -8 -7 -7 -7 -7 -6 -6 -6 -6 -6 -6 -6 -5 -5 -5 -5 -5 -4 -4 -4 -4 -4 -4 -4 -3 -3 -3 -2 -1 -1 -------- Run | Scr Mat Min Exi Min Mat Fac Low Low Zio Pro Fac Was Fac Low Low Dat Pro Fac Upp Upp Zhi Pro Fac Was Fac Upp Upp War Pro Res Qua Res Acc Com Damage Taken 10531 | . 52 390 . 130 91 370 22 118 . 263 89 18 253 41 266 . 338 40 15 280 . 114 377 . 364 216 230 632 376 206 417 1605 17 3201 Core 8222 | . 44 311 . 91 66 265 17 91 . 205 72 14 201 32 211 . 269 31 12 218 . 90 294 . 287 167 178 510 298 164 318 1284 13 2469 Absorbed by Shields 2020 | . . . . . . . . . . . . . . . . . . . . . . . . . . . . 30 137 74 168 568 6 1037 Redirected to Core 7339 | . 26 246 . 77 59 247 17 91 . 186 57 14 176 32 176 . 237 31 12 208 . 80 281 . 278 167 178 422 271 147 297 1094 13 2219 Core Remaining (%) 90 | 100 . . . 100 100 . . . . 100 . . . . . . 80 . . . . 100 . . . . . . 100 . 86 100 . 43 Volleys Fired 938 | . 5 21 . 16 13 35 40 20 . 16 16 16 19 4 13 . 23 48 12 48 . 19 68 13 37 33 12 20 16 25 43 117 9 161 Largest 3 | . 2 2 . 2 2 3 3 3 . 3 3 3 3 3 3 . 2 3 3 3 . 3 3 3 3 3 1 1 1 1 1 3 3 3 Hottest 300 | . 55 55 . 55 72 100 100 100 . 100 127 110 110 110 110 . 80 147 147 147 . 147 147 147 147 147 46 300 300 300 300 300 146 146 Shots Fired 1679 | . 10 39 . 32 25 66 46 50 . 48 27 47 42 10 36 . 40 99 32 66 . 44 144 39 103 57 12 20 16 25 43 152 18 291 Gun 746 | . 5 20 . 16 12 31 12 30 . 32 13 16 12 4 14 . 20 34 11 12 . 18 60 13 36 12 4 20 15 22 14 71 13 154 Cannon 743 | . 5 19 . 16 13 31 34 20 . 16 13 31 30 6 22 . 20 63 21 23 . 26 77 26 66 26 . . . 3 29 30 4 73 Launcher 187 | . . . . . . 4 . . . . . . . . . . . . . 31 . . 7 . 1 19 8 . 1 . . 51 1 64 Special 3 | . . . . . . . . . . . 1 . . . . . . 2 . . . . . . . . . . . . . . . . Kinetic 1360 | . 10 39 . 32 25 62 46 50 . 48 26 47 42 10 36 . 40 94 32 35 . 44 137 39 102 38 4 4 . 3 . 72 17 226 Thermal 125 | . . . . . . . . . . . . . . . . . . . . . . . . . . . . 16 15 22 43 29 . . Explosive 4 | . . . . . . 4 . . . . . . . . . . . . . . . . . . . . . . . . . . . . Electromagnetic 187 | . . . . . . . . . . . . . . . . . . 3 . 31 . . 7 . 1 19 8 . 1 . . 51 1 65 Robot Hit Streak 60 | . 7 12 . 4 3 7 9 9 . 8 12 19 26 12 13 . 23 17 16 14 . 7 19 26 31 15 4 37 60 21 15 32 9 47 Robot Miss Streak 5 | . 1 1 . 3 4 5 2 4 . 2 2 2 1 . 1 . 1 2 2 1 . 3 2 1 1 1 2 1 2 3 1 3 1 4 Penetration Max 2 | . . . . . . 1 1 1 . . 2 1 . . 1 . 1 1 1 1 . 1 1 . 1 1 . . . . . 2 . 2 Secondary Targets . | . . . . . . . . . . . . . . . . . . . . . . . . . . . . . . . . . . . Shots Hit Robots 1025 | . 9 26 . 17 14 37 8 23 . 32 17 33 27 8 22 . 27 54 22 46 . 26 104 32 77 42 5 8 13 19 4 89 9 175 Core Hits 870 | . 4 11 . 8 8 27 5 12 . 8 13 15 16 4 17 . 14 29 12 45 . 11 48 14 43 38 6 73 46 53 32 126 3 129 Critical Hits 96 | . 1 . . . 1 1 1 1 . 1 2 3 3 . 1 . 3 11 3 6 . 3 15 5 14 5 . . . . . 5 1 10 Critical Kills 36 | . . . . . . . 1 . . 1 . 2 1 . . . 1 4 2 2 . 2 6 3 5 . . . . . . 3 . 3 Critical Parts Destroyed 58 | . 1 . . . 1 1 . 1 . . 2 1 2 . 1 . 2 7 1 4 . 1 9 2 9 5 . . . . . 2 1 5 Melee Attacks 1 | . . . . . . . . . . . . . . . . . . . . . . . 1 . . . . . . . . . . . Impact . | . . . . . . . . . . . . . . . . . . . . . . . . . . . . . . . . . . . Slashing . | . . . . . . . . . . . . . . . . . . . . . . . . . . . . . . . . . . . Piercing . | . . . . . . . . . . . . . . . . . . . . . . . . . . . . . . . . . . . Sneak Attacks 1 | . . . . . . . . . . . . . . . . . . . . . . . 1 . . . . . . . . . . . Combat Hostiles . | . . . . . . . . . . . . . . . . . . . . . . . . . . . . . . . . . . . Follow-up Attacks . | . . . . . . . . . . . . . . . . . . . . . . . . . . . . . . . . . . . Damage Inflicted 64453 | . 136 495 . 246 271 1607 228 654 . 669 695 1385 1301 313 926 . 1007 2891 982 3300 . 1157 5710 1394 4006 2262 494 3677 2552 2761 2074 9516 446 11298 Guns 17015 | . 46 175 . 116 170 562 206 458 . 402 452 438 277 116 326 . 539 945 350 260 . 480 1423 382 1073 341 28 103 152 151 132 1583 301 5028 Cannons 18532 | . 90 200 . 130 101 401 22 196 . 267 243 947 765 197 600 . 468 1717 632 681 . 677 2491 1012 2309 701 . . . . . 1137 120 2428 Explosions 28868 | . . 120 . . . 644 . . . . . . 259 . . . . 229 . 2359 . . 1796 . 624 1220 466 3574 2400 2572 1942 6796 25 3842 Melee . | . . . . . . . . . . . . . . . . . . . . . . . . . . . . . . . . . . . Ramming 38 | . . . . . . . . . . . . . . . . . . . . . . . . . . . . . . 38 . . . . Kinetic 34176 | . 136 375 . 246 271 963 228 654 . 669 695 1385 1042 313 926 . 1007 2582 982 941 . 1157 3914 1394 3382 1042 28 . . . . 1967 421 7456 Thermal 16905 | . . 120 . . . 109 . . . . . . . . . . . . . 189 . . 516 . 391 100 . 3677 2527 2723 2074 3909 . 570 Explosive 1708 | . . . . . . 535 . . . . . . 259 . . . . 229 . . . . 685 . . . . . . . . . . . Electromagnetic 11626 | . . . . . . . . . . . . . . . . . . 80 . 2170 . . 595 . 233 1120 466 . 25 . . 3640 25 3272 Impact . | . . . . . . . . . . . . . . . . . . . . . . . . . . . . . . . . . . . Slashing . | . . . . . . . . . . . . . . . . . . . . . . . . . . . . . . . . . . . Piercing . | . . . . . . . . . . . . . . . . . . . . . . . . . . . . . . . . . . . Highest Corruption 22 | . . . . . . 2 2 2 2 . 2 14 18 18 18 18 22 . . . . . . 5 7 7 7 7 . . . 1 5 5 Average Corruption 6 | . . . . . . 1 2 2 2 . 1 9 16 18 18 18 19 . . . . . . 5 5 7 7 7 . . . 1 5 2 Corruption Purged 4 | . . . . . . . . . . . . . . . . . . . . . . . . . . . . . . . . . . 4 Effects 174 | . . . . . . 2 10 3 1 . 2 12 25 19 19 . 25 . . . . . . 2 17 8 7 . . . . 7 4 11 Message Errors 27 | . . . . . . 1 4 1 . . . . 3 1 1 . 3 . . . . . . . 3 2 2 . . . . 4 1 1 Matter Fused 19 | . . . . . . . . . . . . 2 5 4 1 . 1 . . . . . . . 1 2 1 . . . . . . 2 Heat Flow Errors 10 | . . . . . . . . 1 . . . 2 . . . . 2 . . . . . . 1 1 . 2 . . . . . . 1 Energy Discharges 15 | . . . . . . 1 1 . 1 . 1 . 3 1 1 . 2 . . . . . . 1 2 . . . . . . . . 1 Parts Rejected 1 | . . . . . . . . . . . . . . . 1 . . . . . . . . . . . . . . . . . . . Data Loss (minor) 7 | . . . . . . . 2 . . . . 1 1 . . . . . . . . . . . 2 . 1 . . . . . . . Data Loss (major) 2 | . . . . . . . . . . . . 2 . . . . . . . . . . . . . . . . . . . . . . Misfires 3 | . . . . . . . . . . . . . . 1 1 . . . . . . . . . . . . . . . . . 1 . Alerts 1 | . . . . . . . . . . . . . . . 1 . . . . . . . . . . . . . . . . . . . Misdirections 36 | . . . . . . . . . . . . 1 10 9 6 . 10 . . . . . . . . . . . . . . . . . Targeting Errors 47 | . . . . . . . 2 1 . . 1 3 2 3 7 . 5 . . . . . . . 8 4 1 . . . . 2 2 6 Weapon Failures 6 | . . . . . . . 1 . . . . 1 1 . . . 2 . . . . . . . . . . . . . . 1 . . Overload Shots 2 | . . . . . . . . . . . . . . . . . . . . . . . . . . . . . . 2 . . . . Overflow Damage 1586 | . . 8 . 2 . 78 . . . 17 15 12 . . . . 6 111 51 53 . 44 331 . 65 15 . 18 59 20 39 248 33 361 Projectiles 516 | . . . . 2 . . . . . 17 15 12 . . . . 6 37 51 . . 44 58 . 46 15 . . . . . 56 33 124 Explosions 1057 | . . 8 . . . 78 . . . . . . . . . . . 74 . 53 . . 273 . 19 . . 18 59 7 39 192 . 237 Melee 13 | . . . . . . . . . . . . . . . . . . . . . . . . . . . . . . 13 . . . . Knockbacks 58 | . 3 6 . 1 1 7 . . . . . . 2 . 1 . 2 3 . . . 5 6 . 10 7 . . . . . 1 . 3 Impact . | . . . . . . . . . . . . . . . . . . . . . . . . . . . . . . . . . . . Kinetic 56 | . 3 5 . 1 1 6 . . . . . . 2 . 1 . 2 3 . . . 5 6 . 10 7 . . . . . 1 . 3 Secondary 2 | . . 1 . . . 1 . . . . . . . . . . . . . . . . . . . . . . . . . . . . Self-Inflicted Damage 311 | . . . . . . . . . . . . . . . . . . . . . . . . . 36 . . . . 37 . 128 23 87 Shots 13 | . . . . . . . . . . . . . . . . . . . . . . . . . 1 . . . . 1 . 4 1 6 Rammed 1 | . . . . . . . . . . . . . . . . . . . . . . . . . . . . . . 1 . . . . Targets Rammed 1 | . . . . . . . . . . . . . . . . . . . . . . . . . . . . . . 1 . . . . Kicked . | . . . . . . . . . . . . . . . . . . . . . . . . . . . . . . . . . . . Crushed . | . . . . . . . . . . . . . . . . . . . . . . . . . . . . . . . . . . . Highest Temperature 311 | . 10 72 . 36 120 72 42 191 . 30 30 195 226 . 81 . 179 239 146 155 . 18 39 151 209 132 261 196 311 91 7 194 52 230 Average Temperature 44 | . 7 48 . 9 37 25 20 71 . 9 8 68 40 . 45 . 83 75 75 55 . 7 11 20 38 41 104 103 106 46 7 81 26 17 Received Heat Transfer 1085 | . 30 186 . . 18 18 15 63 . 81 24 9 18 . 99 . . 9 9 90 . . 33 . 48 27 . 105 65 24 . 96 . 18 Effects 1 | . . . . . . . . . . . . . . . . . . 1 . . . . . . . . . . . . . . . . Energy Bleed 1 | . . . . . . . . . . . . . . . . . . 1 . . . . . . . . . . . . . . . . Siege Activations . | . . . . . . . . . . . . . . . . . . . . . . . . . . . . . . . . . . . Robots Corrupted 38 | . . . . . . . . . . . . . . . . . . . . 8 . . 2 . . 1 2 . . . . 15 . 10 Combat Hostiles 36 | . . . . . . . . . . . . . . . . . . . . 8 . . 1 . . 1 2 . . . . 15 . 9 Parts Fried 102 | . . . . . . . . . . . . . . . . . . . . 17 . . 5 . . 1 4 . . . . 36 . 39 Impact Corruptions 1 | . . . . . . . . . . . . . . . . . . . . . . . . . . . . . . 1 . . . . Robots Melted 13 | . . . . . . . . . . . . . . . . . . . . . . . . . . . . 5 2 2 2 2 . . Combat Hostiles 11 | . . . . . . . . . . . . . . . . . . . . . . . . . . . . 5 2 1 2 1 . . Parts Melted 62 | . . . . . . . . . . . . . . . . . . . . 1 . . . . . . . 17 12 11 6 14 . 1 Heat Transferred 20491 | . . 150 . . . 50 . . . . . . . . . . . . . 250 . . 250 . 300 150 . 3791 3806 4043 2948 4353 . 400 Parts Sabotaged . | . . . . . . . . . . . . . . . . . . . . . . . . . . . . . . . . . . . Parts Stolen . | . . . . . . . . . . . . . . . . . . . . . . . . . . . . . . . . . . . Parts Stripped . | . . . . . . . . . . . . . . . . . . . . . . . . . . . . . . . . . . . Power Chain Reactions 25 | . . . . . . . . . . . . . . . . . . . . 2 . . 1 . 1 4 . . . . . 10 . 7 Missiles Intercepted . | . . . . . . . . . . . . . . . . . . . . . . . . . . . . . . . . . . . Alert | -11 -10 -10 -10 -9 -8 -7 -7 -7 -7 -6 -6 -6 -6 -6 -6 -6 -5 -5 -5 -5 -5 -4 -4 -4 -4 -4 -4 -4 -3 -3 -3 -2 -1 -1 ------- Run | Scr Mat Min Exi Min Mat Fac Low Low Zio Pro Fac Was Fac Low Low Dat Pro Fac Upp Upp Zhi Pro Fac Was Fac Upp Upp War Pro Res Qua Res Acc Com Peak Influence 2137 | . 65 260 . 180 262 679 . . . . 407 151 483 . . . . 787 . . . . 763 174 782 . . . . 205 233 1226 836 2137 Initial 735 | . . 25 . . 70 119 . . . . 242 142 105 . . . . 51 . . . . . 174 121 . . . . 54 12 130 735 448 Average 506 | . 14 115 . 129 152 370 . . . . 297 148 331 . . . . 247 . . . . 367 174 505 . . . . 70 126 704 770 1474 Maximum Alert Level 5 | . . 1 . . 1 2 . . . . 2 . 2 . . . . 3 . . . . 3 . 3 . . . . 1 1 4 3 5 Low Security (%) 36 | 100 100 83 . 100 90 36 . . . . . 100 16 . . . . 48 . . . . 18 100 8 . . . . 99 76 4 . . Level 1 19 | . . 16 . . 9 21 . . . . 82 . 48 . . . . 43 . . . . 37 . 23 . . . . . 23 11 . . Level 2 20 | . . . . . . 42 . . . . 17 . 35 . . . . . . . . . 37 . 49 . . . . . . 41 . 11 Level 3 9 | . . . . . . . . . . . . . . . . . . 8 . . . . 6 . 18 . . . . . . 20 100 17 Level 4 6 | . . . . . . . . . . . . . . . . . . . . . . . . . . . . . . . . 22 . 21 Level 5 5 | . . . . . . . . . . . . . . . . . . . . . . . . . . . . . . . . . . 37 High Security 1 | . . . . . . . . . . . . . . . . . . . . . . . . . . . . . . . . . . 13 Max Security . | . . . . . . . . . . . . . . . . . . . . . . . . . . . . . . . . . . . Squads Dispatched 41 | . . . . . 1 2 . . . . . . 2 . . . . 6 . 1 . . 8 . 5 . 1 . . 2 2 1 . 10 Investigation 10 | . . . . . 1 . . . . . . . 2 . . . . 3 . 1 . . . . 1 . 1 . . . . . . 1 Extermination 8 | . . . . . . 1 . . . . . . . . . . . 1 . . . . 1 . 2 . . . . . 1 . . 2 Reinforcement 11 | . . . . . . . . . . . . . . . . . . 2 . . . . 4 . 1 . . . . 2 1 1 . . Assault 8 | . . . . . . 1 . . . . . . . . . . . . . . . . . . . . . . . . . . . 7 Garrison 4 | . . . . . . . . . . . . . . . . . . . . . . . 3 . 1 . . . . . . . . . Intercept . | . . . . . . . . . . . . . . . . . . . . . . . . . . . . . . . . . . . Construction Impeded 2 | . . . . . . . . . . . . . . . . . . . . . . . 1 . . . . . . . 1 . . . Haulers Reinforced 9 | . . . . . . . . . . . . . . . . . . 2 . . . . 3 . 1 . . . . 2 . 1 . . Stealth | -11 -10 -10 -10 -9 -8 -7 -7 -7 -7 -6 -6 -6 -6 -6 -6 -6 -5 -5 -5 -5 -5 -4 -4 -4 -4 -4 -4 -4 -3 -3 -3 -2 -1 -1 --------- Run | Scr Mat Min Exi Min Mat Fac Low Low Zio Pro Fac Was Fac Low Low Dat Pro Fac Upp Upp Zhi Pro Fac Was Fac Upp Upp War Pro Res Qua Res Acc Com Distress Signals 24 | . 1 . . . . 2 . . . . 1 . . . . . . 1 . . . . 2 . 2 . . . . . 1 8 . 6 Communications Jammed . | . . . . . . . . . . . . . . . . . . . . . . . . . . . . . . . . . . . Distress Signals . | . . . . . . . . . . . . . . . . . . . . . . . . . . . . . . . . . . . Times Spotted 462 | . 5 8 . 9 8 16 4 8 . 11 9 6 4 3 12 . 7 24 4 30 . 9 24 5 18 25 7 34 12 15 11 66 2 66 Peak Tracking Total 8 | . 4 3 . 4 3 4 3 4 . 4 5 2 1 3 4 . 4 4 5 7 . 5 5 2 3 7 5 8 5 4 5 6 . 8 Tactical Retreats 31 | . . . . 2 2 . . 2 . . . . . . . . . 5 . 1 . 2 1 . 1 2 . . 1 1 1 5 . 5 Traps | -11 -10 -10 -10 -9 -8 -7 -7 -7 -7 -6 -6 -6 -6 -6 -6 -6 -5 -5 -5 -5 -5 -4 -4 -4 -4 -4 -4 -4 -3 -3 -3 -2 -1 -1 ------- Run | Scr Mat Min Exi Min Mat Fac Low Low Zio Pro Fac Was Fac Low Low Dat Pro Fac Upp Upp Zhi Pro Fac Was Fac Upp Upp War Pro Res Qua Res Acc Com Traps Triggered 42 | . . . . 1 1 3 . . . . 2 . 3 . . . . . . . . . 1 . 1 . . . . . 1 . 1 28 Indirectly 23 | . . . . . . . . . . . . . . . . . . . . . . . . . . . . . . . . . . 23 Trap Hack Attempts . | . . . . . . . . . . . . . . . . . . . . . . . . . . . . . . . . . . . Triggered . | . . . . . . . . . . . . . . . . . . . . . . . . . . . . . . . . . . . Disarmed . | . . . . . . . . . . . . . . . . . . . . . . . . . . . . . . . . . . . Reprogrammed . | . . . . . . . . . . . . . . . . . . . . . . . . . . . . . . . . . . . Reused . | . . . . . . . . . . . . . . . . . . . . . . . . . . . . . . . . . . . Traps Extracted . | . . . . . . . . . . . . . . . . . . . . . . . . . . . . . . . . . . . Installed 1 | . . . . . . . . . . . . . . 1 . . . . . . . . . . . . . . . . . . . . Triggered 3 | . . . . . . . . . . . . . . 1 . . . . . . . . . . . . . 2 . . . . . . Machines | -11 -10 -10 -10 -9 -8 -7 -7 -7 -7 -6 -6 -6 -6 -6 -6 -6 -5 -5 -5 -5 -5 -4 -4 -4 -4 -4 -4 -4 -3 -3 -3 -2 -1 -1 ---------- Run | Scr Mat Min Exi Min Mat Fac Low Low Zio Pro Fac Was Fac Low Low Dat Pro Fac Upp Upp Zhi Pro Fac Was Fac Upp Upp War Pro Res Qua Res Acc Com Machines Disabled 86 | . . 3 . . 1 13 1 . . . 3 . 9 . . . . 10 1 1 . . 11 . 11 . 1 2 . . 2 2 2 13 Max in Single Turn 8 | . . 3 . . 1 4 1 . . . 1 . 2 . . . . 4 1 1 . . 4 . 8 . 1 2 . . 1 1 1 2 Garrison Access 12 | . . . . . . 2 . . . . 1 . 1 . . . . 2 . . . . 1 . . . . . . . . 3 2 . Phase Generator 1 | . . . . . . . . . . . . . . . . . . . . . . . . . . . . . . . . . . 1 Machines Sabotaged . | . . . . . . . . . . . . . . . . . . . . . . . . . . . . . . . . . . . Garrisons Compromised . | . . . . . . . . . . . . . . . . . . . . . . . . . . . . . . . . . . . Overloaded Fab Kills . | . . . . . . . . . . . . . . . . . . . . . . . . . . . . . . . . . . . Fab Network Shutdowns 1 | . . . . . . . . . . . . . . . . . . 1 . . . . . . . . . . . . . . . . Hacking | -11 -10 -10 -10 -9 -8 -7 -7 -7 -7 -6 -6 -6 -6 -6 -6 -6 -5 -5 -5 -5 -5 -4 -4 -4 -4 -4 -4 -4 -3 -3 -3 -2 -1 -1 --------- Run | Scr Mat Min Exi Min Mat Fac Low Low Zio Pro Fac Was Fac Low Low Dat Pro Fac Upp Upp Zhi Pro Fac Was Fac Upp Upp War Pro Res Qua Res Acc Com Machines Accessed 103 | . . . 1 1 1 9 . 1 . . 6 . 7 2 1 4 . 18 1 1 4 . 3 . 9 1 1 1 . 5 12 3 3 8 Terminals 59 | . . . . . 1 5 . . . . 4 . 5 . . . . 11 . 1 . . 2 . 5 . 1 . . 5 11 . 1 7 Fabricators 9 | . . . . . . 2 . . . . 1 . 1 . . . . 4 . . . . . . 1 . . . . . . . . . Repair Stations 1 | . . . . . . . . . . . . . . . . . . . . . . . . . 1 . . . . . . . . . Recycling Units 1 | . . . . . . . . . . . . . . . . . . . . . . . . . . . . . . . . . . 1 Scanalyzers 4 | . . . . . . . . . . . . . . . . . . 1 . . . . . . 2 . . . . . 1 . . . Garrison Access 12 | . . . . . . 2 . . . . 1 . 1 . . . . 2 . . . . 1 . . . . . . . . 3 2 . Total Hacks 280 | . . . 4 1 3 22 . 1 . . 20 . 17 6 1 25 . 51 1 6 15 . 10 . 25 1 5 5 . 13 23 5 4 16 Successful 187 | . . . 4 1 2 9 . 1 . . 8 . 9 6 1 25 . 32 1 6 15 . 7 . 12 1 5 5 . 7 15 3 3 9 Failed 93 | . . . . . 1 13 . . . . 12 . 8 . . . . 19 . . . . 3 . 13 . . . . 6 8 2 1 7 Catastrophic 15 | . . . . . . 3 . . . . 4 . 2 . . . . 3 . . . . . . 1 . . . . . 2 . . . Database Lockouts . | . . . . . . . . . . . . . . . . . . . . . . . . . . . . . . . . . . . Manual 69 | . . . . . . 4 . . . . 7 . 4 . . . . 15 . . . . 5 . 6 . . 1 . 6 10 . 2 9 Terminals 161 | . . . . . 3 11 . . . . 15 . 12 . . . . 34 . 6 . . 9 . 16 . 5 . . 13 21 . 2 14 Fabricators 30 | . . . . . . 7 . . . . 4 . 4 . . . . 13 . . . . . . 2 . . . . . . . . . Repair Stations 3 | . . . . . . . . . . . . . . . . . . . . . . . . . 3 . . . . . . . . . Recycling Units 2 | . . . . . . . . . . . . . . . . . . . . . . . . . . . . . . . . . . 2 Scanalyzers 8 | . . . . . . . . . . . . . . . . . . 2 . . . . . . 4 . . . . . 2 . . . Garrison Access 16 | . . . . . . 4 . . . . 1 . 1 . . . . 2 . . . . 1 . . . . . . . . 5 2 . Terminal Hacks 136 | . . . 4 1 2 2 . 1 . . 5 . 7 6 1 25 . 16 1 6 15 . 6 . 6 1 5 5 . 6 9 . 1 5 Record 38 | . . . 4 . . . . . . . . . . 5 . 11 . . . 6 5 . . . . . 5 . . . 2 . . . Part Schematic 19 | . . . . . . 1 . . . . . . 3 . . 6 . 4 . . 2 . 1 . 1 . . . . . 1 . . . Robot Schematic 5 | . . . . . . . . . . . . . . . . 5 . . . . . . . . . . . . . . . . . . Robot Analysis 5 | . . . . . . . . . . . . . . . . . . 1 . . 4 . . . . . . . . . . . . . Prototype ID Bank 15 | . . . . . . . . . . . . . 1 . . 3 . 1 . . 4 . 1 . . . . 5 . . . . . . Open Door 8 | . . . . 1 . . . 1 . . . . . 1 1 . . . 1 . . . . . . 1 . . . 1 1 . . . Level Access Points 2 | . . . . . 1 1 . . . . . . . . . . . . . . . . . . . . . . . . . . . . Branch Access Points 2 | . . . . . 1 . . . . . . . . . . . . 1 . . . . . . . . . . . . . . . . Emergency Access Points 2 | . . . . . . . . . . . . . 1 . . . . . . . . . . . . . . . . . . . . 1 Machine Index 1 | . . . . . . . . . . . . . . . . . . . . . . . . . . . . . . . 1 . . . Terminal Index 3 | . . . . . . . . . . . 1 . . . . . . 1 . . . . . . . . . . . . . . . 1 Fabricator Index 1 | . . . . . . . . . . . . . . . . . . . . . . . . . . . . . . . . . . 1 Alert Level 4 | . . . . . . . . . . . . . . . . . . 1 . . . . 1 . 1 . . . . . 1 . . . Unreport Threat 11 | . . . . . . . . . . . 1 . 1 . . . . 1 . . . . 2 . 2 . . . . 2 1 . 1 . Locate Traps 6 | . . . . . . . . . . . 1 . 1 . . . . 2 . . . . . . 1 . . . . . . . . 1 Recall Extermination 1 | . . . . . . . . . . . . . . . . . . 1 . . . . . . . . . . . . . . . . Hauler Manifests 5 | . . . . . . . . . . . 1 . . . . . . 1 . . . . . . 1 . . . . 2 . . . . Registered Components 3 | . . . . . . . . . . . . . . . . . . 1 . . . . . . . . . . . 1 1 . . . Registered Prototypes 1 | . . . . . . . . . . . . . . . . . . 1 . . . . . . . . . . . . . . . . Zone Layout 3 | . . . . . . . . . . . 1 . . . . . . . . . . . 1 . . . . . . . 1 . . . Disengage Seal 1 | . . . . . . . . . . . . . . . . . . . . . . . . . . . . . . . . . . 1 Fabricator Hacks 15 | . . . . . . 3 . . . . 1 . 1 . . . . 8 . . . . . . 2 . . . . . . . . . Load Schematic 7 | . . . . . . 1 . . . . . . 1 . . . . 4 . . . . . . 1 . . . . . . . . . Build 8 | . . . . . . 2 . . . . 1 . . . . . . 4 . . . . . . 1 . . . . . . . . . Repair Station Hacks 1 | . . . . . . . . . . . . . . . . . . . . . . . . . 1 . . . . . . . . . Scan Component 1 | . . . . . . . . . . . . . . . . . . . . . . . . . 1 . . . . . . . . . Recycling Unit Hacks . | . . . . . . . . . . . . . . . . . . . . . . . . . . . . . . . . . . . Scanalyzer 5 | . . . . . . . . . . . . . . . . . . 2 . . . . . . 3 . . . . . . . . . Insert Component 3 | . . . . . . . . . . . . . . . . . . 1 . . . . . . 2 . . . . . . . . . Analyze 2 | . . . . . . . . . . . . . . . . . . 1 . . . . . . 1 . . . . . . . . . Garrison Access Hacks 12 | . . . . . . 2 . . . . 1 . 1 . . . . 2 . . . . 1 . . . . . . . . 3 2 . Seal Access 12 | . . . . . . 2 . . . . 1 . 1 . . . . 2 . . . . 1 . . . . . . . . 3 2 . Unauthorized Hacks 18 | . . . . . . 2 . . . . 1 . . . . . . 4 . . . . . . . . . . . 1 6 . . 4 Terminals 14 | . . . . . . 1 . . . . 1 . . . . . . 3 . . . . . . . . . . . 1 5 . . 3 Track 3 | . . . . . . . . . . . . . . . . . . 1 . . . . . . . . . . . . 1 . . 1 Botnet 11 | . . . . . . 1 . . . . 1 . . . . . . 2 . . . . . . . . . . . 1 4 . . 2 Fabricators 2 | . . . . . . 1 . . . . . . . . . . . 1 . . . . . . . . . . . . . . . . Prioritize 2 | . . . . . . 1 . . . . . . . . . . . 1 . . . . . . . . . . . . . . . . Repair Stations . | . . . . . . . . . . . . . . . . . . . . . . . . . . . . . . . . . . . Recycling Units 1 | . . . . . . . . . . . . . . . . . . . . . . . . . . . . . . . . . . 1 Reject 1 | . . . . . . . . . . . . . . . . . . . . . . . . . . . . . . . . . . 1 Scanalyzers 1 | . . . . . . . . . . . . . . . . . . . . . . . . . . . . . . . 1 . . . Researchers 1 | . . . . . . . . . . . . . . . . . . . . . . . . . . . . . . . 1 . . . Garrison Access . | . . . . . . . . . . . . . . . . . . . . . . . . . . . . . . . . . . . Data Cores Recovered . | . . . . . . . . . . . . . . . . . . . . . . . . . . . . . . . . . . . Used . | . . . . . . . . . . . . . . . . . . . . . . . . . . . . . . . . . . . Hacking Detections 66 | . . . . . 1 7 . . . . 4 . 6 . . . . 15 . 1 . . 2 . 8 . 1 . . 5 9 . 1 6 Full Trace Events 7 | . . . . . . . . . . . . . 1 . . . . 3 . 1 . . . . 1 . 1 . . . . . . . Feedback Events 2 | . . . . . . . . . . . . . 1 . . . . 1 . . . . . . . . . . . . . . . . Corruption 1 | . . . . . . . . . . . . . 1 . . . . . . . . . . . . . . . . . . . . . Hackware Fried 1 | . . . . . . . . . . . . . . . . . . 1 . . . . . . . . . . . . . . . . Feedback Blocked . | . . . . . . . . . . . . . . . . . . . . . . . . . . . . . . . . . . . Robot Schematics Acquired 5 | . . . . . . . . . . . . . . . . 5 . . . . . . . . . . . . . . . . . . Robots Built 6 | . . . . . . . . . . . 3 . . . . . . . . . . . . . 3 . . . . . . . . . Matter 603 | . . . . . . . . . . . 252 . . . . . . . . . . . . . 351 . . . . . . . . . Time 227 | . . . . . . . . . . . 134 . . . . . . . . . . . . . 93 . . . . . . . . . Total Robot Build Rating 33 | . . . . . . . . . . . 12 . . . . . . . . . . . . . 21 . . . . . . . . . Part Schematics Acquired 21 | . . . . . . 1 . . . . . . 3 . . 6 . 5 . . 2 . 1 . 2 . . . . . 1 . . . Parts Built 8 | . . . . . . 3 . . . . . . . . . . . 5 . . . . . . . . . . . . . . . . Matter 1206 | . . . . . . 380 . . . . . . . . . . . 826 . . . . . . . . . . . . . . . . Time 389 | . . . . . . 148 . . . . . . . . . . . 241 . . . . . . . . . . . . . . . . Total Part Build Rating 44 | . . . . . . 14 . . . . . . . . . . . 30 . . . . . . . . . . . . . . . . Parts Repaired . | . . . . . . . . . . . . . . . . . . . . . . . . . . . . . . . . . . . Time . | . . . . . . . . . . . . . . . . . . . . . . . . . . . . . . . . . . . Parts Recycled . | . . . . . . . . . . . . . . . . . . . . . . . . . . . . . . . . . . . Recycled Matter . | . . . . . . . . . . . . . . . . . . . . . . . . . . . . . . . . . . . Retrieved Matter . | . . . . . . . . . . . . . . . . . . . . . . . . . . . . . . . . . . . Retrieved Components . | . . . . . . . . . . . . . . . . . . . . . . . . . . . . . . . . . . . Parts Scanalyzed 3 | . . . . . . . . . . . . . . . . . . 1 . . . . . . 2 . . . . . . . . . Part Schematics Acquired 2 | . . . . . . . . . . . . . . . . . . 1 . . . . . . 1 . . . . . . . . . Parts Damaged 1 | . . . . . . . . . . . . . . . . . . . . . . . . . 1 . . . . . . . . . Bothacking | -11 -10 -10 -10 -9 -8 -7 -7 -7 -7 -6 -6 -6 -6 -6 -6 -6 -5 -5 -5 -5 -5 -4 -4 -4 -4 -4 -4 -4 -3 -3 -3 -2 -1 -1 ------------ Run | Scr Mat Min Exi Min Mat Fac Low Low Zio Pro Fac Was Fac Low Low Dat Pro Fac Upp Upp Zhi Pro Fac Was Fac Upp Upp War Pro Res Qua Res Acc Com Used RIF Installer . | . . . . . . . . . . . . . . . . . . . . . . . . . . . . . . . . . . . Robots Hacked 2 | . . . . . . . . . . . 1 . . . . . . . . . . . 1 . . . . . . . . . . . Non-combat 2 | . . . . . . . . . . . 1 . . . . . . . . . . . 1 . . . . . . . . . . . Combat . | . . . . . . . . . . . . . . . . . . . . . . . . . . . . . . . . . . . Robot Hacks Applied 2 | . . . . . . . . . . . 1 . . . . . . . . . . . 1 . . . . . . . . . . . find_chute 2 | . . . . . . . . . . . 1 . . . . . . . . . . . 1 . . . . . . . . . . . Relay Couplers Released . | . . . . . . . . . . . . . . . . . . . . . . . . . . . . . . . . . . . Robots Rewired 1 | . . . . . . . . . . . . . . . . . . . . . . . 1 . . . . . . . . . . . Allies Hacked . | . . . . . . . . . . . . . . . . . . . . . . . . . . . . . . . . . . . Hacks Repelled . | . . . . . . . . . . . . . . . . . . . . . . . . . . . . . . . . . . . Allies | -11 -10 -10 -10 -9 -8 -7 -7 -7 -7 -6 -6 -6 -6 -6 -6 -6 -5 -5 -5 -5 -5 -4 -4 -4 -4 -4 -4 -4 -3 -3 -3 -2 -1 -1 -------- Run | Scr Mat Min Exi Min Mat Fac Low Low Zio Pro Fac Was Fac Low Low Dat Pro Fac Upp Upp Zhi Pro Fac Was Fac Upp Upp War Pro Res Qua Res Acc Com Total Allies 21 | . . . . . . . . . 10 . 3 1 . 2 . . 1 . . . . . 1 . 3 . . . . . . . . . Largest Group 10 | . . . . . . . . . 10 10 9 6 4 2 2 . 1 1 . . . . 1 . 3 3 1 . . . . . . . Highest-Rated Group 246 | . . . . . . . . . 246 246 219 155 109 50 50 . 94 94 . . . . 49 . 141 141 47 . . . . . . . Highest-Rated Ally 94 | . . . . . . . . . 31 31 31 31 31 25 25 . 94 94 . . . . 49 . 47 47 47 . . . . . . . Total Orders 3 | . . . . . . . . . . . . . . . . . . . . . . . . . . 2 1 . . . . . . . STAY 2 | . . . . . . . . . . . . . . . . . . . . . . . . . . 1 1 . . . . . . . FOLLOW 1 | . . . . . . . . . . . . . . . . . . . . . . . . . . 1 . . . . . . . . Ally Attacks 118 | . . . . . . . . . . 57 7 5 7 . . . 4 5 . . . . 6 . 8 17 2 . . . . . . . Total Damage 2893 | . . . . . . . . . . 1158 196 110 250 . . . 60 228 . . . . 188 . 291 373 39 . . . . . . . Kills 19 | . . . . . . . . . . 8 1 . 1 . . . 1 3 . . . . 1 . 1 3 . . . . . . . . Allies Corrupted 1 | . . . . . . . . . . . . . 1 . . . . . . . . . . . . . . . . . . . . . Allies Melted . | . . . . . . . . . . . . . . . . . . . . . . . . . . . . . . . . . . . Intel | -11 -10 -10 -10 -9 -8 -7 -7 -7 -7 -6 -6 -6 -6 -6 -6 -6 -5 -5 -5 -5 -5 -4 -4 -4 -4 -4 -4 -4 -3 -3 -3 -2 -1 -1 ------- Run | Scr Mat Min Exi Min Mat Fac Low Low Zio Pro Fac Was Fac Low Low Dat Pro Fac Upp Upp Zhi Pro Fac Was Fac Upp Upp War Pro Res Qua Res Acc Com Robot Analysis Total 5 | . . . . . . . . . . . . . . . . . . 1 . . 4 . . . . . . . . . . . . . Derelict Logs Recovered 22 | . . 2 . 1 . . 3 2 1 1 . . . 2 2 . 1 . 2 2 . 1 . . . 1 1 . . . . . . . Drone Launches . | . . . . . . . . . . . . . . . . . . . . . . . . . . . . . . . . . . . Drone Recoveries . | . . . . . . . . . . . . . . . . . . . . . . . . . . . . . . . . . . . Exploration | -11 -10 -10 -10 -9 -8 -7 -7 -7 -7 -6 -6 -6 -6 -6 -6 -6 -5 -5 -5 -5 -5 -4 -4 -4 -4 -4 -4 -4 -3 -3 -3 -2 -1 -1 ------------- Run | Scr Mat Min Exi Min Mat Fac Low Low Zio Pro Fac Was Fac Low Low Dat Pro Fac Upp Upp Zhi Pro Fac Was Fac Upp Upp War Pro Res Qua Res Acc Com Turns Passed 15541 | 34 109 429 115 322 309 903 867 496 681 349 347 211 397 224 235 37 423 885 192 598 46 443 478 92 519 659 503 549 571 454 353 1359 154 1198 Spaces Moved 22473 | 31 78 320 128 253 261 1185 775 780 1187 416 452 214 503 368 354 76 626 1381 503 1358 135 702 454 150 653 796 847 745 906 846 554 2391 338 1707 Core 2 | 2 . . . . . . . . . . . . . . . . . . . . . . . . . . . . . . . . . . Treads . | . . . . . . . . . . . . . . . . . . . . . . . . . . . . . . . . . . . Legs . | . . . . . . . . . . . . . . . . . . . . . . . . . . . . . . . . . . . Wheels 1189 | 29 78 320 128 253 261 120 . . . . . . . . . . . . . . . . . . . . . . . . . . . . Hover 13819 | . . . . . . 1065 775 780 1187 416 452 214 503 368 354 76 626 39 . . . . . . 422 796 847 745 906 846 554 1848 . . Flight 7463 | . . . . . . . . . . . . . . . . . . 1342 503 1358 135 702 454 150 231 . . . . . . 543 338 1707 Fastest Speed 11 | 50 90 90 90 80 90 45 45 45 45 45 45 45 45 48 48 48 48 23 24 24 24 24 24 24 11 44 44 36 36 36 36 30 34 34 Average Speed 39 | 86 90 90 90 89 90 51 45 45 45 45 45 45 47 48 48 48 48 24 24 24 24 24 24 24 37 44 44 41 36 36 36 31 34 34 Slowest Speed 180 | 90 90 90 90 90 90 90 45 45 45 45 48 45 48 48 48 48 48 99 24 96 24 24 99 24 180 44 44 44 36 36 36 117 34 117 Overloaded Moves 1 | . . . . . . . . . . . . . . . . . . . . . . . . . 1 . . . . . . . . . Propulsion Burnouts . | . . . . . . . . . . . . . . . . . . . . . . . . . . . . . . . . . . . Robots Hopped 23 | . . . . . . . . . . . . . . . . . . 18 1 . . . 1 . 3 . . . . . . . . . Cave-ins Triggered 1 | . . . . . . . . . . . . . . . . . . . . . . . . . . . . . . . . . . 1 Exploration Rate (%) 55 | 3 23 83 49 31 32 38 86 84 85 71 17 97 17 55 62 69 72 38 75 86 55 76 19 81 18 87 77 80 75 22 79 48 13 49 Regions Visited 34 Branch Regions 21 Pre-discovered Areas 10 | . . 1 1 . . . . . 1 . . . . 1 . 1 . . . . 3 . . . . 1 1 . . . . . . . Known Exits Taken 25 | . . . . . 1 1 1 1 1 1 . . 1 1 1 1 1 1 1 1 1 1 . . 1 1 1 1 1 1 1 1 1 . Unknown Exits Taken 5 | 1 1 1 1 1 . . . . . . . . . . . . . . . . . . . . . . . . . . . . . . Scrap Searched 41 | . . 1 . 1 . . 2 7 3 3 . . . 1 1 . 2 . 2 5 . 3 . . . 3 4 . 3 . . . . . Spaces Dug 127 | . . . . . . 4 4 1 . . . . 8 . . . 2 16 . 1 . . 15 . 6 2 2 . . 4 23 11 10 18 Terrain Destroyed 904 | . . 10 . . 2 104 5 1 . 3 6 11 35 1 12 . 17 63 11 20 . 26 121 . 79 35 2 2 4 5 23 78 17 211 Melee . | . . . . . . . . . . . . . . . . . . . . . . . . . . . . . . . . . . . Projectile 441 | . . . . . 2 . 5 1 . 3 6 11 14 1 12 . 17 35 11 8 . 26 60 . 46 20 2 2 . 5 23 29 17 85 AOE 463 | . . 10 . . . 104 . . . . . . 21 . . . . 28 . 12 . . 61 . 33 15 . . 4 . . 49 . 126 Terrain Rammed . | . . . . . . . . . . . . . . . . . . . . . . . . . . . . . . . . . . . Walls Destroyed . | . . . . . . . . . . . . . . . . . . . . . . . . . . . . . . . . . . . Machines Disabled . | . . . . . . . . . . . . . . . . . . . . . . . . . . . . . . . . . . . Actions | -11 -10 -10 -10 -9 -8 -7 -7 -7 -7 -6 -6 -6 -6 -6 -6 -6 -5 -5 -5 -5 -5 -4 -4 -4 -4 -4 -4 -4 -3 -3 -3 -2 -1 -1 --------- Run | Scr Mat Min Exi Min Mat Fac Low Low Zio Pro Fac Was Fac Low Low Dat Pro Fac Upp Upp Zhi Pro Fac Was Fac Upp Upp War Pro Res Qua Res Acc Com Total 27610 | 35 106 422 127 312 308 1411 1247 884 1332 541 569 292 628 405 389 75 705 1823 547 1568 147 938 698 175 844 1056 964 955 1120 949 650 2841 367 2180 Wait 3189 | . 17 69 . 27 15 142 421 77 129 81 75 54 67 28 10 . 46 353 29 114 2 207 136 8 107 207 94 115 166 61 33 123 21 155 Move 22398 | 30 77 319 127 252 260 1184 774 779 1186 415 452 213 502 367 353 75 625 1349 500 1357 134 701 452 149 646 795 846 744 905 845 553 2390 337 1705 Hop 18 | . . . . . . . . . . . . . . . . . . 13 1 . . . 1 . 3 . . . . . . . . . Pick Up 42 | . 1 . . . 2 2 . . . . . 2 1 . . . . 1 . 4 . 2 1 . 2 1 . 5 3 . 1 9 . 5 Fast Attach 194 | 5 2 . . 5 5 14 . 5 9 1 8 1 10 . 1 . 3 20 2 8 6 . 6 . 14 1 2 11 4 9 2 37 . 3 Attach 15 | . . . . . . 1 . . . . 1 1 . . . . . . . . . . 1 . 1 . . 3 2 . . 3 . 2 Detach 7 | . . . . . . 1 . . . . 1 . . . . . . 1 . 1 . . . . . . . 2 . . . . . 1 Swap 48 | . . . . . 2 9 . . . . 1 1 2 2 . . 1 5 . 6 . . 6 1 2 . . 1 . . . 5 . 4 Drop 217 | . 1 1 . . 5 16 . 3 8 1 6 3 13 . . . 2 18 1 12 5 2 6 . 15 1 2 21 7 8 3 46 . 11 Fire 938 | . 5 21 . 16 13 35 40 20 . 16 16 16 19 4 13 . 23 48 12 48 . 19 68 13 37 33 12 20 16 25 43 117 9 161 Melee 1 | . . . . . . . . . . . . . . . . . . . . . . . 1 . . . . . . . . . . . Ram 1 | . . . . . . . . . . . . . . . . . . . . . . . . . . . . . . 1 . . . . Kick . | . . . . . . . . . . . . . . . . . . . . . . . . . . . . . . . . . . . Crush . | . . . . . . . . . . . . . . . . . . . . . . . . . . . . . . . . . . . Escape Stasis 63 | . . . . . . . . . . . . . . . . . . . . . . . . . 4 . . . . . . . . 59 Rewire 3 | . . . . . . . . . . . . . . . . . . . . . . . 3 . . . . . . . . . . . Trap 1 | . . . . . . . . . . . . . . 1 . . . . . . . . . . . . . . . . . . . . Miscellaneous 475 | . 3 12 . 12 6 7 12 . . 27 9 1 14 3 12 . 5 15 2 18 . 7 17 4 13 18 8 33 17 . 15 111 . 74 Route ------- -11/Scrapyard -10/Materials -10/Mines (discovered 3 exits: [*Mat x2] / *Exi) -10/Exiles -9/Mines -8/Materials (discovered 3 exits: *Fac x3) -7/Factory (discovered 5 exits: Fac x4 / *Low) -7/Lower Caves -7/Lower Caves (discovered 2 exits: *Fac / *Zio) -7/Zion (discovered 2 exits: [Dee] / *Pro) -6/Proximity Caves -6/Factory (discovered 2 exits: Fac / Low) -6/Waste -6/Factory (discovered 2 exits: *Fac / *Low) -6/Lower Caves -6/Lower Caves (discovered 2 exits: Fac / *Dat) -6/Data Miner -5/Proximity Caves -5/Factory (discovered 7 exits: *Fac x3 / *Upp x2 / *Ext x2) -5/Upper Caves -5/Upper Caves (discovered 2 exits: *Fac / *Zhi) -5/Zhirov -4/Proximity Caves -4/Factory (discovered 4 exits: Res x2 / Upp x2) -4/Waste -4/Factory (discovered 2 exits: *Res / *Upp) -4/Upper Caves -4/Upper Caves (discovered 2 exits: *Res / *War) -4/Warlord -3/Proximity Caves -3/Research (discovered 2 exits: Arm / *Qua) -3/Quarantine -2/Research (discovered 2 exits: *Acc / *Tes) -1/Access -1/Command To Epsilon Eridani History --------- Turn | Location | Event 1 | -11/Scrapyard | Upgraded with Propulsion slot (x1) 1 | -11/Scrapyard | Upgraded with Utility slot (x1) 1 | -11/Scrapyard | Upgraded with Weapon slot (x1) 21 | -11/Scrapyard | Discovered new exit (range 14) 35 | -11/Scrapyard | Entered Materials 81 | -10/Materials | Discovered new exit (range 15) 144 | -10/Materials | Entered Mines 183 | -10/Mines | Met a Derelict bent on vengeance 253 | -10/Mines | Discovered new exit (range 7) 302 | -10/Mines | Learned location of Zion (-7) 315 | -10/Mines | Build established: Mutant 363 | -10/Mines | Learned Materials garrison access intel 370 | -10/Mines | Excavation squad dispatched 370 | -10/Mines | A large section of the Mines collapsed 475 | -10/Mines | Reached level 2 491 | -10/Mines | Discovered new exit (range 12) 508 | -10/Mines | Found a hidden stash of uninstalled traps 570 | -10/Mines | Deemed a non-threat by the Exiles lab entrance 570 | -10/Mines | Discovered new exit (range 5) 573 | -10/Mines | Entered Exiles 596 | -10/Exiles | Met 8R-AWN 610 | -10/Exiles | Met EX-HEX 647 | -10/Exiles | Met EX-DEC 669 | -10/Exiles | Upgraded with Utility slot (x1) 680 | -10/Exiles | Discovered new exit (range 10) 688 | -10/Exiles | Entered Mines 722 | -9/Mines | Discovered new exit (range 11) 731 | -9/Mines | Learned 2 Materials zone layouts 794 | -9/Mines | Reached level 3 806 | -9/Mines | Met a Derelict who couldn't figure out how to use a Trap Extractor 865 | -9/Mines | Assembled infested the area 1010 | -9/Mines | Entered Materials 1011 | -8/Materials | Identified exit to Factory 1012 | -8/Materials | Loaded intel: 1 garrison access location 1012 | -8/Materials | Reached level 4 1023 | -8/Materials | Upgraded with Propulsion slot (x1) 1023 | -8/Materials | Upgraded with Utility slot (x1) 1319 | -8/Materials | Entered Factory 1321 | -7/Factory | Reached level 5 1564 | -7/Factory | Upgraded with Weapon slot (x1) 1696 | -7/Factory | Reached level 6 1771 | -7/Factory | Upgraded with Propulsion slot (x1) 1878 | -7/Factory | Reached level 7 1896 | -7/Factory | Identified exit to Factory 2022 | -7/Factory | Fabricated Matter Filter (x2) 2075 | -7/Factory | Discovered new exit (range 20) 2088 | -7/Factory | Fabricated Adv. Hacking Suite (x1) 2152 | -7/Factory | First assault squad dispatched 2202 | -7/Factory | Identified exit to Lower Caves 2222 | -7/Factory | Entered Lower Caves 2226 | -7/Lower Caves | Identified exit to Lower Caves 2227 | -7/Lower Caves | Encountered a Warlord checkpoint 2278 | -7/Lower Caves | Attracted the attention of an 0b10 checkpoint 2382 | -7/Lower Caves | Build established: Hacker-Scout 3061 | -7/Lower Caves | Reached level 8 3089 | -7/Lower Caves | Entered another Lower Caves area 3097 | -7/Lower Caves | Encountered a Warlord checkpoint 3180 | -7/Lower Caves | Learned Factory emergency access door positions 3308 | -7/Lower Caves | Discovered exit to Factory (range 15) 3389 | -7/Lower Caves | Upgraded with Utility slot (x1) 3451 | -7/Lower Caves | Learned location of 1 exit from Factory 3477 | -7/Lower Caves | Discovered new exit (range 8) 3480 | -7/Lower Caves | Identified exit to Zion 3574 | -7/Lower Caves | Found Alien Artifact 3574 | -7/Lower Caves | Identified Core Expander 3574 | -7/Lower Caves | Installed Core Expander, added new Weapon slot 3585 | -7/Lower Caves | Entered Zion 3587 | -7/Zion | Reached level 9 3607 | -7/Zion | Discovered new exit (range 14) 3626 | -7/Zion | System corruption cleaned by Quarantine Array 3703 | -7/Zion | Upgraded with Utility slot (x1) 3704 | -7/Zion | Found Prototype Processor 3704 | -7/Zion | Identified Exp. Armor Integrity Analyzer 3710 | -7/Zion | Found Prototype Processor 3710 | -7/Zion | Identified Spectral Analyzer 3713 | -7/Zion | Found Prototype Processor 3713 | -7/Zion | Identified Exp. Signal Interpreter 3764 | -7/Zion | System corruption cleaned by Quarantine Array 3828 | -7/Zion | Learned Factory emergency access door positions 3836 | -7/Zion | Learned location of Armory (-3) 3868 | -7/Zion | Learned location of 1 exit from Factory 3881 | -7/Zion | Given A8's code to call for help 3897 | -7/Zion | Found Prototype Energy Gun 3897 | -7/Zion | Identified Storm Laser 3904 | -7/Zion | Discovered new exit (range 15) 4042 | -7/Zion | Gained Derelict followers 4088 | -7/Zion | Gained Derelict followers 4133 | -7/Zion | Gained Derelict followers 4173 | -7/Zion | Identified exit to Proximity Caves 4266 | -7/Zion | Entered Proximity Caves 4266 | -6/Proximity Caves | Accompanied by 10 allies 4275 | -6/Proximity Caves | Reached level 10 4279 | -6/Proximity Caves | Attracted the attention of an 0b10 checkpoint 4432 | -6/Proximity Caves | Reached level 11 4443 | -6/Proximity Caves | Learned Factory terminal intel 4510 | -6/Proximity Caves | Discovered exit to Factory (range 19) 4615 | -6/Proximity Caves | Entered Factory 4615 | -6/Factory | Accompanied by 6 allies 4616 | -6/Factory | Identified exit to Factory 4616 | -6/Factory | Identified exit to Lower Caves 4617 | -6/Factory | Reached level 12 4618 | -6/Factory | Loaded intel: 20 terminal locations 4847 | -6/Factory | Reached level 13 4913 | -6/Factory | Fabricated B-48 Gladiator? 4962 | -6/Factory | Sucked down chute 4962 | -6/Factory | Entered Waste 4962 | -6/Waste | Met up with 1 ally sucked down the chute earlier 4968 | -6/Waste | Spotted C-40 Crusher 4976 | -6/Waste | Destroyed C-40 Crusher 4977 | -6/Waste | EMP discharged 4983 | -6/Waste | Spotted C-40 Crusher 4988 | -6/Waste | Destroyed C-40 Crusher 4995 | -6/Waste | Spotted C-40 Crusher 5000 | -6/Waste | Destroyed C-40 Crusher 5021 | -6/Waste | Spotted C-40 Crusher 5037 | -6/Waste | Destroyed C-40 Crusher 5053 | -6/Waste | Spotted C-40 Crusher 5061 | -6/Waste | Spotted C-40 Crusher 5064 | -6/Waste | Destroyed C-40 Crusher 5077 | -6/Waste | EMP discharged 5077 | -6/Waste | System corruption reached 10% 5077 | -6/Waste | Destroyed C-40 Crusher 5115 | -6/Waste | 5 allies followed down the chute 5123 | -6/Waste | Discovered new exit (range 11) 5127 | -6/Waste | Identified exit to Factory 5173 | -6/Waste | Entered Factory 5173 | -6/Factory | Accompanied by 4 allies 5242 | -6/Factory | Found Prototype Device 5242 | -6/Factory | Identified Exp. Sensor Array 5305 | -6/Factory | Discovered exit to Lower Caves (range 16) 5327 | -6/Factory | Reached level 14 5399 | -6/Factory | Discovered exit to Factory (range 17) 5570 | -6/Factory | Entered Lower Caves 5572 | -6/Lower Caves | Reached level 15 5609 | -6/Lower Caves | Identified exit to Lower Caves 5623 | -6/Lower Caves | Learned location of 1 exit from Factory 5631 | -6/Lower Caves | A Commander dispatched an escort 5794 | -6/Lower Caves | Entered another Lower Caves area 5794 | -6/Lower Caves | Accompanied by 2 allies 5795 | -6/Lower Caves | Commander's escort returned to base 5795 | -6/Lower Caves | Commander's escort returned to base 5809 | -6/Lower Caves | Reached level 16 5830 | -6/Lower Caves | Discovered exit to Factory (range 13) 5952 | -6/Lower Caves | Learned Factory non-interactive machine intel 5958 | -6/Lower Caves | Encountered a Warlord checkpoint 5961 | -6/Lower Caves | Learned Factory emergency access door positions 5989 | -6/Lower Caves | Discovered new exit (range 10) 5993 | -6/Lower Caves | Identified exit to Data Miner 6029 | -6/Lower Caves | Entered Data Miner 6029 | -6/Data Miner | Discovered new exit (range 6) 6031 | -6/Data Miner | Reached level 17 6038 | -6/Data Miner | Met Data Miner 6047 | -6/Data Miner | Learned location of Section 7 (-2) 6047 | -6/Data Miner | Acquired the access code to Warlord's prototype stash 6054 | -6/Data Miner | Received God Mode back door access code from Data Miner 6065 | -6/Data Miner | Identified exit to Proximity Caves 6066 | -6/Data Miner | Entered Proximity Caves 6073 | -5/Proximity Caves | Reached level 18 6156 | -5/Proximity Caves | Learned Factory stockpile data 6241 | -5/Proximity Caves | Escorted by Enhanced Grunt 6381 | -5/Proximity Caves | Upgraded with Propulsion slot (x1) 6381 | -5/Proximity Caves | Upgraded with Utility slot (x1) 6419 | -5/Proximity Caves | Discovered exit to Factory (range 8) 6489 | -5/Proximity Caves | Entered Factory 6489 | -5/Factory | Accompanied by 1 ally 6490 | -5/Factory | Identified exit to Upper Caves 6491 | -5/Factory | Identified exit to Factory 6491 | -5/Factory | Reached level 19 6494 | -5/Factory | Loaded intel: 262 non-interactive machine locations 6510 | -5/Factory | Upgraded with Power slot (x1) 6510 | -5/Factory | Upgraded with Propulsion slot (x1) 6564 | -5/Factory | Upgraded with Utility slot (x1) 6573 | -5/Factory | Reached level 20 6610 | -5/Factory | Adv. Hacking Suite fried by hacking feedback 6630 | -5/Factory | Incoming investigation squad redirected 6652 | -5/Factory | Fabricated Lrn. Terrain Scanner (x1) 6727 | -5/Factory | Incoming investigation squad redirected 6733 | -5/Factory | Fabricated Adv. Hacking Suite (x1) 6849 | -5/Factory | Identified exit to Extension 6884 | -5/Factory | Incoming investigation squad redirected 6915 | -5/Factory | Fabricated Corruption Screen? 7055 | -5/Factory | Spotted B-75 Beast 7115 | -5/Factory | Fabricated Imp. Kinecellerator (x1) 7189 | -5/Factory | Discovered exit to Factory (range 8) 7255 | -5/Factory | Discovered exit to Factory (range 23) 7298 | -5/Factory | Local fabrication network quarantined 7300 | -5/Factory | Reached level 21 7374 | -5/Factory | Entered Upper Caves 7426 | -5/Upper Caves | Found Alien Artifact 7426 | -5/Upper Caves | Identified Dimensional Node Initializer 7426 | -5/Upper Caves | Initialized slip node 7499 | -5/Upper Caves | Attracted the attention of an 0b10 checkpoint 7552 | -5/Upper Caves | Discovered new exit (range 19) 7564 | -5/Upper Caves | Destroyed 8 combat bots 7564 | -5/Upper Caves | Identified exit to Upper Caves 7566 | -5/Upper Caves | Entered another Upper Caves area 7567 | -5/Upper Caves | Encountered a Warlord checkpoint 7601 | -5/Upper Caves | Discovered exit to Factory (range 21) 7623 | -5/Upper Caves | Learned 12 Factory zone layouts 7636 | -5/Upper Caves | Learned Factory trap positions 7760 | -5/Upper Caves | Reached level 22 7797 | -5/Upper Caves | Attracted the attention of an 0b10 checkpoint 7875 | -5/Upper Caves | Discovered new exit (range 7) 7876 | -5/Upper Caves | Identified exit to Zhirov 7934 | -5/Upper Caves | Attracted the attention of an 0b10 base 7967 | -5/Upper Caves | Learned location of 1 exit from Proximity Caves 7967 | -5/Upper Caves | Learned 6 Lower Caves zone layouts 7967 | -5/Upper Caves | Learned Armory trap positions 7979 | -5/Upper Caves | Destroyed 7 combat bots 8101 | -5/Upper Caves | Destroyed 8 combat bots 8164 | -5/Upper Caves | Entered Zhirov 8164 | -5/Zhirov | Discovered new exit (range 3) 8169 | -5/Zhirov | Met Zhirov 8174 | -5/Zhirov | Learned location of Quarantine (-3) 8174 | -5/Zhirov | Learned location of Testing (-2) 8174 | -5/Zhirov | Learned location of Command (-1) 8176 | -5/Zhirov | Zhirov requested help retrieving the SGEMP Prototype 8180 | -5/Zhirov | Found Alien Artifact 8180 | -5/Zhirov | Identified Integrated Dissipator 8180 | -5/Zhirov | Installed Integrated Dissipator, increased core heat dissipation (+20) 8210 | -5/Zhirov | Identified exit to Proximity Caves 8210 | -5/Zhirov | Entered Proximity Caves 8212 | -4/Proximity Caves | Reached level 23 8216 | -4/Proximity Caves | Learned Research trap positions 8653 | -4/Proximity Caves | Entered Factory 8654 | -4/Factory | Identified exit to Research 8654 | -4/Factory | Identified exit to Upper Caves 8655 | -4/Factory | Reached level 24 8656 | -4/Factory | Loaded intel: 83 trap records 8657 | -4/Factory | Upgraded with Utility slot (x1) 8845 | -4/Factory | Garrison activated, responded to threat 8855 | -4/Factory | Reached level 25 9131 | -4/Factory | Sucked down chute 9131 | -4/Factory | Entered Waste 9135 | -4/Waste | Spotted C-40 Crusher 9135 | -4/Waste | Spotted C-40 Crusher 9140 | -4/Waste | Destroyed C-40 Crusher 9140 | -4/Waste | Destroyed C-40 Crusher 9146 | -4/Waste | EMP discharged 9156 | -4/Waste | Spotted C-40 Crusher 9170 | -4/Waste | Destroyed C-40 Crusher 9174 | -4/Waste | Destroyed C-40 Crusher 9184 | -4/Waste | Spotted C-40 Crusher 9189 | -4/Waste | Destroyed C-40 Crusher 9199 | -4/Waste | Destroyed C-40 Crusher 9214 | -4/Waste | Discovered new exit (range 12) 9222 | -4/Waste | Identified exit to Factory 9223 | -4/Waste | Entered Factory 9245 | -4/Factory | Spotted B-86 Titan 9309 | -4/Factory | Found Unknown Device 9309 | -4/Factory | Identified Quantum Capacitor 9323 | -4/Factory | Discovered exit to Research (range 7) 9423 | -4/Factory | Garrison activated, responded to threat 9498 | -4/Factory | Reached level 26 9634 | -4/Factory | Fabricated G-67 Veteran? 9742 | -4/Factory | Entered Upper Caves 9742 | -4/Upper Caves | Accompanied by 3 allies 9916 | -4/Upper Caves | Encountered a Warlord checkpoint 9994 | -4/Upper Caves | Discovered new exit (range 21) 10006 | -4/Upper Caves | Ambushed by wild Derelicts 10161 | -4/Upper Caves | Attracted the attention of an 0b10 outpost 10326 | -4/Upper Caves | Identified exit to Upper Caves 10401 | -4/Upper Caves | Entered another Upper Caves area 10401 | -4/Upper Caves | Accompanied by 1 ally 10425 | -4/Upper Caves | Discovered exit to Research (range 5) 10598 | -4/Upper Caves | Discovered new exit (range 13) 10604 | -4/Upper Caves | Identified exit to Warlord 10804 | -4/Upper Caves | Learned Factory terminal intel 10804 | -4/Upper Caves | Learned Factory stockpile data 10904 | -4/Upper Caves | Entered Warlord 10906 | -4/Warlord | Reached level 27 10919 | -4/Warlord | System corruption cleaned by Quarantine Array 11072 | -4/Warlord | Upgraded with Weapon slot (x1) 11074 | -4/Warlord | Found Prototype Energy Gun 11074 | -4/Warlord | Identified Plasma Storm 11130 | -4/Warlord | Met Warlord 11134 | -4/Warlord | Opened Warlord's prototype stash 11138 | -4/Warlord | Found Prototype Reactor 11138 | -4/Warlord | Identified Vortex Chain Reactor 11145 | -4/Warlord | Warlord's base attacked by MAIN.C 11145 | -4/Warlord | Found Prototype Device 11145 | -4/Warlord | Identified System Purifier 11153 | -4/Warlord | Found Prototype Hackware 11153 | -4/Warlord | Identified System Mapper 11306 | -4/Warlord | Destroyed 8 combat bots 11398 | -4/Warlord | Warlord forces counterattacked 11448 | -4/Warlord | Discovered new exit (range 14) 11452 | -4/Warlord | Identified exit to Proximity Caves 11453 | -4/Warlord | Entered Proximity Caves 11685 | -3/Proximity Caves | Reached level 28 11703 | -3/Proximity Caves | Found Unknown Protection 11703 | -3/Proximity Caves | Identified Imp. Powered Armor 11758 | -3/Proximity Caves | Spotted B-86 Titan 11905 | -3/Proximity Caves | Destroyed B-86 Titan 12019 | -3/Proximity Caves | Discovered exit to Research (range 6) 12024 | -3/Proximity Caves | Entered Research 12025 | -3/Research | Identified exit to Armory 12026 | -3/Research | Loaded intel: 80 trap records 12269 | -3/Research | Upgraded with Weapon slot (x1) 12286 | -3/Research | Found Prototype Processor 12286 | -3/Research | Identified Exp. Target Analyzer 12318 | -3/Research | Discovered new exit (range 9) 12478 | -3/Research | Identified exit to Quarantine 12478 | -3/Research | Entered Quarantine 12480 | -3/Quarantine | Reached level 29 12674 | -3/Quarantine | Found Alien Artifact 12771 | -3/Quarantine | Discovered new exit (range 8) 12777 | -3/Quarantine | Identified exit to Research 12798 | -3/Quarantine | Met incapacitated Sigix Warrior 12798 | -3/Quarantine | Lockdown squad dispatched 12799 | -3/Quarantine | Acquired the access code to the Sigix quarantine chamber 12831 | -3/Quarantine | Entered Research 12831 | -2/Research | Warlord forces began assault on 0b10 12833 | -2/Research | Reached level 30 12941 | -2/Research | Research machine network offline 13118 | -2/Research | Spotted Executioner 13118 | -2/Research | Spotted Executioner 13139 | -2/Research | Destroyed Executioner 13150 | -2/Research | Reached level 31 13165 | -2/Research | Found Prototype Processor 13165 | -2/Research | Identified Exp. Core Analyzer 13174 | -2/Research | Spotted Striker 13223 | -2/Research | Discovered new exit (range 17) 13233 | -2/Research | Found Prototype Launcher 13233 | -2/Research | Identified Hellfire Missile Launcher 13237 | -2/Research | Identified exit to Testing 13275 | -2/Research | Upgraded with Utility slot (x1) 13317 | -2/Research | Found Prototype Protection 13317 | -2/Research | Identified Centrium Heavy Armor Plating 13335 | -2/Research | Met up with Warlord 13354 | -2/Research | Borebot progress halted 13380 | -2/Research | Spotted Striker 13390 | -2/Research | Destroyed Striker 13431 | -2/Research | Spotted Striker 13440 | -2/Research | Destroyed Striker 13507 | -2/Research | Destroyed 8 combat bots 13598 | -2/Research | Borebot progress halted 13744 | -2/Research | Spotted Striker 13774 | -2/Research | Spotted Executioner 13783 | -2/Research | Spotted Striker 13793 | -2/Research | Destroyed Executioner 13801 | -2/Research | Reached level 32 13825 | -2/Research | Upgraded with Utility slot (x1) 13837 | -2/Research | Spotted Executioner 13849 | -2/Research | Spotted Executioner 13854 | -2/Research | Destroyed Executioner 13876 | -2/Research | Spotted Striker 13878 | -2/Research | Spotted Striker 13883 | -2/Research | Destroyed Striker 14033 | -2/Research | Discovered new exit (range 15) 14038 | -2/Research | Warlord invited to help at Command 14038 | -2/Research | Identified exit to Access 14053 | -2/Research | Destroyed Striker 14129 | -2/Research | Found Prototype Device 14129 | -2/Research | Identified Adv. Kinecellerator 14190 | -2/Research | Entered Access 14192 | -1/Access | Reached level 33 14197 | -1/Access | Build established: Scavenger-Scout 14333 | -1/Access | Discovered new exit (range 15) 14344 | -1/Access | Identified exit to Command 14344 | -1/Access | Entered Command 14346 | -1/Command | Reached level 34 14390 | -1/Command | Phase Generator disabled 14442 | -1/Command | Disengaged cave seal 14442 | -1/Command | Derelicts emerged from the dark tunnel 14442 | -1/Command | Welcomed Warlord to Command 14466 | -1/Command | Spotted B-99 Colossus 14508 | -1/Command | Destroyed B-99 Colossus 14579 | -1/Command | Reached level 35 14870 | -1/Command | First assault squad dispatched 14897 | -1/Command | Incoming assault squad redirected 14899 | -1/Command | Incoming assault squad redirected 14903 | -1/Command | Identified Terrabomb 14903 | -1/Command | Used Terrabomb 14903 | -1/Command | Spotted B-99 Colossus 14910 | -1/Command | Discovered new exit (range 18) 14911 | -1/Command | Spotted Striker 14913 | -1/Command | Destroyed Striker 14913 | -1/Command | Destroyed Executioner 14931 | -1/Command | Spotted Alpha 7 14934 | -1/Command | Destroyed 9 combat bots 14937 | -1/Command | Destroyed B-99 Colossus 14939 | -1/Command | Destroyed Executioner 14953 | -1/Command | Spotted Alpha 7 14959 | -1/Command | Destroyed Alpha 7 14969 | -1/Command | Crushed by falling debris 15091 | -1/Command | Identified exit to Surface 15386 | -1/Command | High security lockdown imminent 15456 | -1/Command | Spotted Combat Programmer 15461 | -1/Command | Spotted M Guard 15466 | -1/Command | High security lockdown engaged 15473 | -1/Command | Spotted Combat Programmer 15515 | -1/Command | Destroyed Combat Programmer 15516 | -1/Command | Spotted M Guard 15539 | -1/Command | Core integrity fell below 50% 15539 | -1/Command | Destroyed M Guard 15539 | -1/Command | Reached level 36 15542 | *** | Escaped! Last Messages --------------- 15526_ K-01 Serf collects debris. 15527_ Slug penetrates M Guard. 15529_ M Guard suffers critical hit. 15530_ K-01 Serf collects debris. 15531_ Slug penetrates M Guard. 15532_ The unstable cave ceiling collapses. 15532_ Phasing Sabre crushed. 15533_ The unstable cave ceiling collapses. 15534_ K-01 Serf collects debris. 15535_ The unstable cave ceiling collapses. 15536_ Hvy. Machine Gun crushed. 15536_ Slug penetrates M Guard. 15537_ Combat Programmer fries systems beyond repair. 15537_ Combat Programmer destroyed. 15538_ K-01 Serf collects debris. 15539_ Slug penetrates M Guard. 15539_ M Guard destroyed. 15539_ Reached level 36. 15540_ Knocked back. 15542_ K-01 Serf collects debris. Map ----- +----------------------------------------------------+ | #?########?###?# [" ##?#?#?####%??#?#?? | | #?############## = # * # ? ???=?##????? | | #?#####?### %= # ?[+!# ??#? | | ########### [ # ? " " ??" | | #######?### | " "=" " ? | | ######## "##"""""""" " " " | | ##### # #########""""""""""!" " " | | + # #?###### ""*"% " " | | + ############" "" " " " | | + # """" ## " "" """""" " | | + # """" ! # ; " =%"" | | " """" # ; """" "=!% !% | | ##"# # """" ; ; """" "[k%""" | | "?#### ; ; """" "" """"" | | ######### ] ; ; """ ""*" " " | | ##?######## # ! ; ; ;;;;;;;"""!+* " " | | #####?##### # " "! " " | | ########### ########; "=" "[" | | ########### ######## ;;;;;;" "% "=" | | ?########## #######; Y "[" * " " | | ########### #### *! """"""*" | | ##?######## " # *=] """"=" | | ##?######## #### ^ ^^^ =*=[ *W[ !=%[ | | ##?######## #### #= / = [ %"""[=% | | ######?#### #### # =!=[*[= "!%= | | ########### #### @" #= ! [ """" | | ########### #### "" # |"![! | | ### ## ####### = # =[ % | | ?## ## ####### "=" | | ### ## ####### # ;!"""""""" | | ### ## ####### " " | | ### ## ####### "*" | | #?# ## ####### k "!! | | ### * ## ######## # # *= ! | | ?## ## ######## =" "[ | | ### ## ######## [ ="%+ | | ### ## ######## | # " """""""" | | #?# ## ######## = ="% | | ### ## ########; # " ""+""""" | | #?# ## ########; ## "[= | | ### ## ########## ^###### "%" ! | | ### ## ########## ######## " [ ?? | | ### ## ######### ############ # * ? | | ### ######### ########?##%##"????? | | ####### % # C ############ ? | | #?## %%%% # % ########"#######? | | ### % % #! CC # #### | | ### " " # # " # | | ### # ######## # ! ! "### | | ####% "## ###### # ![=! * + | +----------------------------------------------------+ Best States ------------- Heat Dissipation 99 Coolant Potential 100 Energy Generation 60 Energy Capacity 1700 Matter Stores 350 Matter Capacity 350 Sight Range 17 Robot Scan Range 26 Terrain Scan Range 24 Terrain Scan Density 210 Base Temperature (-) 200 EM Shielding 4 Corruption Prevention 20 Armor Coverage 150 Resistance: KI 20 Resistance: TH 20 Resistance: EX 50 Weapon Cycling 25 Evasion (%) 65 Launcher Accuracy 40 Core Analysis 15 Armor Integrity Analysis 90 Matter Filtering 50 Energy Filtering 30 Kinecelleration 50 Salvage Targeting 4 Stasis Canceling 2 Offensive Hacking 30 Defensive Hacking 10 Item Schematics ----------------- Adv. Hacking Suite | -7/Factory | Hacked Lrn. Terrain Scanner | -6/Factory | Hacked Impulse Thruster | -6/Factory | Hacked Corruption Screen | -6/Factory | Hacked Combat Drone Bay | -6/Data Miner | Free Lgt. Regenerative Plating | -6/Data Miner | Free Tactical Coordination Suite | -6/Data Miner | Free Exp. Transmission Jammer | -6/Data Miner | Free Plasma Sword | -6/Data Miner | Free Exp. ECM Suite | -6/Data Miner | Free Imp. System Restoration Module | -5/Factory | Hacked Adv. Shield Generator | -5/Factory | Scanalyzed Energy Filter | -5/Factory | Hacked Imp. Kinecellerator | -5/Factory | Hacked Adv. Force Field | -5/Factory | Hacked Imp. Arc Thrower | -5/Zhirov | Free Assault Drone Bay | -5/Zhirov | Free Adv. Reaction Control System | -4/Factory | Hacked Imp. Stasis Canceller | -4/Factory | Hacked Nanoactuators | -4/Factory | Scanalyzed Imp. Q-thruster | -3/Quarantine | Hacked Robot Schematics ------------------ S-27 Virus | -6/Data Miner | Free G-67 Veteran | -6/Data Miner | Free L-41 Fighter | -6/Data Miner | Free H-66 Slayer | -6/Data Miner | Free I-36 Angel | -6/Data Miner | Free Fabricated ------------ Matter Filter | x2 | -7/Factory | Preloaded Adv. Hacking Suite | x1 | -7/Factory B-48 Gladiator | x3 | -6/Factory | Preloaded Lrn. Terrain Scanner | x1 | -5/Factory Adv. Hacking Suite | x1 | -5/Factory Corruption Screen | x2 | -5/Factory Imp. Kinecellerator | x1 | -5/Factory G-67 Veteran | x3 | -4/Factory Alien Tech Used ----------------- Core Expander Dimensional Node Initializer Integrated Dissipator Terrabomb Achievements -------------- None Challenges ------------ None RPGLIKE | -11 -10 -10 -10 -9 -8 -7 -7 -7 -7 -6 -6 -6 -6 -6 -6 -6 -5 -5 -5 -5 -5 -4 -4 -4 -4 -4 -4 -4 -3 -3 -3 -2 -1 -1 --------- Run | Scr Mat Min Exi Min Mat Fac Low Low Zio Pro Fac Was Fac Low Low Dat Pro Fac Upp Upp Zhi Pro Fac Was Fac Upp Upp War Pro Res Qua Res Acc Com Levels Raised 35 | . . 1 . 1 1 3 1 . 1 2 2 . 1 1 1 1 1 3 . 1 . 1 2 . 1 . . 1 1 . 1 3 1 3 XP Earned 55507 | 3000 250 1475 200 1300 2175 4372 850 1200 650 3374 2768 200 1809 1080 1885 604 2411 3625 695 1525 220 1691 2381 67 941 913 312 709 1015 1075 1022 4373 1503 3837 XP Spent 53870 | 2325 . . 2150 500 1980 4880 . 1400 1700 2770 1600 . 1225 . . . 3400 9010 . 750 . 525 3200 . 1000 . . 2445 . 1400 . 7120 1380 3110 Upgrades 109 | 7 . . 7 1 4 23 . 1 1 8 2 . 2 . . . 2 13 . 1 . 2 2 . 1 . . 7 . 1 . 8 6 10 Power Slot 1 | . . . . . . . . . . . . . . . . . . 1 . . . . . . . . . . . . . . . . Propulsion Slot 5 | 1 . . . . 1 1 . . . . . . . . . . 1 1 . . . . . . . . . . . . . . . . Utility Slot 10 | 1 . . 1 . 1 . . 1 1 . . . . . . . 1 1 . . . . 1 . . . . . . . . 2 . . Weapon Slot 4 | 1 . . . . . 1 . . . . . . . . . . . . . . . . . . . . . 1 . 1 . . . . Core Integrity 32 | 1 . . . . 2 3 . . . 2 . . . . . . . 2 . . . 1 . . . . . 1 . . . 6 6 8 Heat Dissipation 9 | . . . . . . 2 . . . 1 . . . . . . . 2 . . . . . . . . . 3 . . . . . 1 Energy Generation 1 | . . . 1 . . . . . . . . . . . . . . . . . . . . . . . . . . . . . . . Matter Storage 1 | . . . . . . 1 . . . . . . . . . . . . . . . . . . . . . . . . . . . . Mass Support 2 | . . . 1 . . . . . . . . . . . . . . . . . . . 1 . . . . . . . . . . . Inventory Capacity 4 | 1 . . . 1 . . . . . . . . . . . . . 1 . . . . . . 1 . . . . . . . . . Sight Range 1 | . . . 1 . . . . . . . . . . . . . . . . . . . . . . . . . . . . . . . Sensor Range 13 | . . . . . . 11 . . . . . . 1 . . . . 1 . . . . . . . . . . . . . . . . Terrain Scan Density 2 | . . . . . . 2 . . . . . . . . . . . . . . . . . . . . . . . . . . . . Ranged Accuracy 6 | 1 . . 1 . . . . . . 2 1 . 1 . . . . . . . . . . . . . . . . . . . . . Hack Attack % 2 | . . . . . . 1 . . . . . . . . . . . . . . . 1 . . . . . . . . . . . . Hack Defense % 2 | . . . . . . 1 . . . . . . . . . . . . . . . . . . . . . . . . . . . 1 KI Resistance % 4 | 1 . . . . . . . . . 1 . . . . . . . 2 . . . . . . . . . . . . . . . . TH Resistance % 4 | . . . 1 . . . . . . 1 . . . . . . . 1 . 1 . . . . . . . . . . . . . . KI Damage % 4 | . . . 1 . . . . . . 1 1 . . . . . . 1 . . . . . . . . . . . . . . . . TH Damage % 2 | . . . . . . . . . . . . . . . . . . . . . . . . . . . . 2 . . . . . . Protomatter Created 4604 | . 71 46 . 55 23 47 65 . . 9 94 86 77 9 152 . 31 164 85 367 . 112 176 336 88 219 85 338 192 37 208 854 . 578 Integrity Restored 9151 | . 52 249 . 159 102 111 246 . . 492 146 22 255 43 237 . 92 279 15 287 . 114 292 89 259 319 178 675 346 . 324 2285 . 1483 Core 6978 | . 44 249 . 153 66 105 177 . . 296 72 . 215 27 216 . 72 228 12 218 . 90 226 68 210 244 143 545 298 . 324 1442 . 1238 Parts 2173 | . 8 . . 6 36 6 69 . . 196 74 22 40 16 21 . 20 51 3 69 . 24 66 21 49 75 35 130 48 . . 843 . 245 Protomatter Decayed 5276 | . . . . 32 . . 35 . . 70 92 78 41 24 71 . . 3 . 226 . 29 112 220 . 75 . 119 . . . 3484 34 531 Game ------ Seed SuspensionMicroAccelerator Manual? 0 Play Time 04:39:59 Cumulative 360.2 hours Start 2021.06.09 @ 10:13:58 End 2021.06.09 @ 14:58:07 Sessions 1 Manual Loads 0 Difficulty Rogue Special Mode Winter2019/RPGLIKE Game No. 140 Rogue 140 Adventurer 0 Explorer 0 Win Type 0 Total 22 Types 19/0/2/1/0/0/0/0/0 Lore% 81 Gallery% 87 Achievement% 71 Wizard Run 0 Options --------- ASCII 0 Keyboard 0 Movement Mouse Keybinds 0 Fullscreen 2 Font 12/Smallcaps Map View 83x54 Tactical HUD 1 Map Filters NONE Filters NONE Steam X RUN: d36a8b8c-a8c8-4205-932d-e35c35bf8ae5